Workbook

Sheet summary (auto)
B2: 3 view test case
C4: video 0 | D4: video 1 | E4: video 2 | F4: video PSNR / video bitrate | G4: video PSNR / total bitrate | H4: synth PSNR / total bitrate | I4: enc time | J4: dec time | K4: ren time
B5: ='experimental data'!B3 -> Balloons | C5: ='experimental data'!U3 -> 0 | D5: ='experimental data'!U7 -> 0 | E5: ='experimental data'!U11 -> 0 | F5: ='experimental data'!U434 -> 0 | G5: =bdrate('experimental data'!E450:E453,'experimental data'!F434:F437,'experimental data'!M450:M453,'experimental data'!N434:N437) -> 0 | H5: ='experimental data'!U442 -> 0 | I5: ='experimental data'!Y51 -> 0.7114427799 | J5: 0.971 | K5: ='experimental data'!AA51 -> 
B6: ='experimental data'!B55 -> Kendo | C6: ='experimental data'!U55 -> 0 | D6: ='experimental data'!U59 -> 0 | E6: ='experimental data'!U63 -> 0 | F6: ='experimental data'!U458 -> 0 | G6: =bdrate('experimental data'!E474:E477,'experimental data'!F458:F461,'experimental data'!M474:M477,'experimental data'!N458:N461) -> 0 | H6: ='experimental data'!U466 -> 0 | I6: 0.973 | J6: ='experimental data'!Z103 -> 0.7152737986 | K6: ='experimental data'!AA103 -> 
B7: ='experimental data'!B107 -> Newspaper_CC | C7: ='experimental data'!U107 -> 0 | D7: ='experimental data'!U111 -> 0 | E7: ='experimental data'!U115 -> 0 | F7: ='experimental data'!U482 -> 0 | G7: =bdrate('experimental data'!E498:E501,'experimental data'!F482:F485,'experimental data'!M498:M501,'experimental data'!N482:N485) -> 0 | H7: ='experimental data'!U490 -> 0 | I7: ='experimental data'!Y155 -> 0.7167027947 | J7: ='experimental data'!Z155 -> 0.6784880315 | K7: ='experimental data'!AA155 -> 
B8: ='experimental data'!B159 -> GT_Fly | C8: ='experimental data'!U159 -> 0 | D8: ='experimental data'!U163 -> 0 | E8: ='experimental data'!U167 -> 0 | F8: ='experimental data'!U506 -> 0 | G8: =bdrate('experimental data'!E522:E525,'experimental data'!F506:F509,'experimental data'!M522:M525,'experimental data'!N506:N509) -> 0 | H8: ='experimental data'!U514 -> 0 | I8: ='experimental data'!Y207 -> 0.8190757396 | J8: ='experimental data'!Z207 -> 0.9325858873 | K8: ='experimental data'!AA207 -> 
B9: ='experimental data'!B211 -> Poznan_Hall2 | C9: ='experimental data'!U211 -> 0 | D9: ='experimental data'!U215 -> 0 | E9: ='experimental data'!U219 -> 0 | F9: ='experimental data'!U530 -> 0 | G9: =bdrate('experimental data'!E546:E549,'experimental data'!F530:F533,'experimental data'!M546:M549,'experimental data'!N530:N533) -> 0 | H9: ='experimental data'!U538 -> 0 | I9: ='experimental data'!Y259 -> 0.7370849837 | J9: 1.018 | K9: ='experimental data'!AA259 -> 
B10: ='experimental data'!B263 -> Poznan_Street | C10: ='experimental data'!U263 -> 0 | D10: ='experimental data'!U267 -> 0 | E10: ='experimental data'!U271 -> 0 | F10: ='experimental data'!U554 -> 0 | G10: =bdrate('experimental data'!E570:E573,'experimental data'!F554:F557,'experimental data'!M570:M573,'experimental data'!N554:N557) -> 0 | H10: ='experimental data'!U562 -> 0 | I10: ='experimental data'!Y311 -> 0.7876261544 | J10: 1.003 | K10: ='experimental data'!AA311 -> 
B11: ='experimental data'!B315 -> Undo_Dancer | C11: ='experimental data'!U315 -> 0 | D11: ='experimental data'!U319 -> 0 | E11: ='experimental data'!U323 -> 0 | F11: ='experimental data'!U578 -> 0 | G11: =bdrate('experimental data'!E594:E597,'experimental data'!F578:F581,'experimental data'!M594:M597,'experimental data'!N578:N581) -> 0 | H11: ='experimental data'!U586 -> 0 | I11: ='experimental data'!Y363 -> 0.8168185139 | J11: ='experimental data'!Z363 -> 0.9823354134 | K11: ='experimental data'!AA363 -> 
B12: ='experimental data'!B598 -> Shark | C12: ='experimental data'!U367 -> 0 | D12: ='experimental data'!U371 -> 0 | E12: ='experimental data'!U375 -> 0 | F12: ='experimental data'!U602 -> 0 | G12: =bdrate('experimental data'!E618:E621,'experimental data'!F602:F605,'experimental data'!M618:M621,'experimental data'!N602:N605) -> 0 | H12: ='experimental data'!U610 -> 0 | I12: ='experimental data'!Y415 -> 0.8466780036 | J12: ='experimental data'!Z415 -> 1.012487545 | K12: ='experimental data'!AA415 -> 
B13: 1024x768 | C13: =AVERAGE(C5:C7) -> 0 | D13: 0 | E13: 0 | F13: 0 | G13: 0 | H13: 0 | I13: 0.8003818582 | J13: 0.7882539434
B14: 1920x1088 | C14: =AVERAGE(C8:C12) -> 0 | D14: =AVERAGE(D8:D12) -> 0 | E14: 0 | F14: 0 | G14: 0 | H14: 0 | I14: 0.801456679 | J14: 0.9896817692
B15: average | C15: =AVERAGE(C5:C12) -> 0 | D15: =AVERAGE(D5:D12) -> 0 | E15: 0 | F15: 0 | G15: 0 | H15: 0 | I15: =AVERAGE(I5:I12) -> 0.8010536212 | J15: 0.9141463345
B18: 2 view test case (extracted from 3 view data)
C20: video 0 | D20: video 1 | E20: video PSNR / video bitrate | F20: video PSNR / total bitrate | G20: synth PSNR / total bitrate
B21: ='experimental data'!B3 -> Balloons | C21: ='experimental data'!U3 -> 0 | D21: ='experimental data'!U7 -> 0 | E21: ='experimental data'!U430 -> 0 | F21: =bdrate('experimental data'!E446:E449,'experimental data'!F430:F433,'experimental data'!M446:M449,'experimental data'!N430:N433) -> 0 | G21: ='experimental data'!U438 -> 0
B22: ='experimental data'!B55 -> Kendo | C22: ='experimental data'!U55 -> 0 | D22: ='experimental data'!U59 -> 0 | E22: ='experimental data'!U454 -> 0 | F22: =bdrate('experimental data'!E470:E473,'experimental data'!F454:F457,'experimental data'!M470:M473,'experimental data'!N454:N457) -> 0 | G22: ='experimental data'!U462 -> 0
B23: ='experimental data'!B107 -> Newspaper_CC | C23: ='experimental data'!U107 -> 0 | D23: ='experimental data'!U111 -> 0 | E23: ='experimental data'!U478 -> 0 | F23: =bdrate('experimental data'!E494:E497,'experimental data'!F478:F481,'experimental data'!M494:M497,'experimental data'!N478:N481) -> 0 | G23: ='experimental data'!U486 -> 0
B24: ='experimental data'!B159 -> GT_Fly | C24: ='experimental data'!U159 -> 0 | D24: ='experimental data'!U163 -> 0 | E24: ='experimental data'!U502 -> 0 | F24: =bdrate('experimental data'!E518:E521,'experimental data'!F502:F505,'experimental data'!M518:M521,'experimental data'!N502:N505) -> 0 | G24: ='experimental data'!U510 -> 0
B25: ='experimental data'!B211 -> Poznan_Hall2 | C25: ='experimental data'!U211 -> 0 | D25: ='experimental data'!U215 -> 0 | E25: ='experimental data'!U526 -> 0 | F25: =bdrate('experimental data'!E542:E545,'experimental data'!F526:F529,'experimental data'!M542:M545,'experimental data'!N526:N529) -> 0 | G25: ='experimental data'!U534 -> 0
B26: ='experimental data'!B263 -> Poznan_Street | C26: ='experimental data'!U263 -> 0 | D26: ='experimental data'!U267 -> 0 | E26: ='experimental data'!U550 -> 0 | F26: =bdrate('experimental data'!E566:E569,'experimental data'!F550:F553,'experimental data'!M566:M569,'experimental data'!N550:N553) -> 0 | G26: ='experimental data'!U558 -> 0
B27: ='experimental data'!B315 -> Undo_Dancer | C27: ='experimental data'!U315 -> 0 | D27: ='experimental data'!U319 -> 0 | E27: ='experimental data'!U574 -> 0 | F27: =bdrate('experimental data'!E590:E593,'experimental data'!F574:F577,'experimental data'!M590:M593,'experimental data'!N574:N577) -> 0 | G27: ='experimental data'!U582 -> 0
B28: ='experimental data'!B598 -> Shark | C28: ='experimental data'!U367 -> 0 | D28: ='experimental data'!U371 -> 0 | E28: ='experimental data'!U598 -> 0 | F28: =bdrate('experimental data'!E614:E617,'experimental data'!F598:F601,'experimental data'!M614:M617,'experimental data'!N598:N601) -> 0 | G28: ='experimental data'!U606 -> 0
B29: 1024x768 | C29: =AVERAGE(C21:C23) -> 0 | D29: =AVERAGE(D21:D23) -> 0 | E29: =AVERAGE(E21:E23) -> 0 | F29: =AVERAGE(F21:F23) -> 0 | G29: =AVERAGE(G21:G23) -> 0
B30: 1920x1088 | C30: =AVERAGE(C24:C28) -> 0 | D30: =AVERAGE(D24:D28) -> 0 | E30: =AVERAGE(E24:E28) -> 0 | F30: =AVERAGE(F24:F28) -> 0 | G30: =AVERAGE(G24:G28) -> 0
B31: average | C31: =AVERAGE(C21:C28) -> 0 | D31: =AVERAGE(D21:D28) -> 0 | E31: =AVERAGE(E21:E28) -> 0 | F31: =AVERAGE(F21:F28) -> 0 | G31: =AVERAGE(G21:G28) -> 0

Sheet experimental data
E1: Reference | M1: Tested | U1: BD-rate (piecewise cubic) | Y1: Time ratio
A2: Class | B2: Sequence | C2: component | D2: QPISlice(V0) | E2: kbps | F2: Y-PSNR | G2: U-PSNR | H2: V-PSNR | I2: Enc T [s] | J2: Dec T [s] | K2: Ren T [s] | M2: kbps | N2: Y-PSNR | O2: U-PSNR | P2: V-PSNR | Q2: Enc T [s] | R2: Dec T [s] | S2: Ren T [s] | U2: Y | V2: U | W2: V | Y2: Enc | Z2: Dec | AA2: Ren
A3: 1024x768 | B3: Balloons | C3: video 0 | D3: 25 | E3: 878.1544 | F3: 43.0952 | G3: 43.402 | H3: 43.9712 | M3: 878.1544 | N3: 43.0952 | O3: 43.402 | P3: 43.9712 | U3: =bdrate($E3:$E6,F3:F6,$M3:$M6,N3:N6) -> 0 | V3: =bdrate($E3:$E6,G3:G6,$M3:$M6,O3:O6) -> 0 | W3: =bdrate($E3:$E6,H3:H6,$M3:$M6,P3:P6) -> 0
D4: 30 | E4: 481.5664 | F4: 41.046 | G4: 42.1403 | H4: 42.3323 | M4: 481.5664 | N4: 41.046 | O4: 42.1403 | P4: 42.3323
D5: 35 | E5: 277.1824 | F5: 38.4566 | G5: 40.6462 | H5: 40.5216 | M5: 277.1824 | N5: 38.4566 | O5: 40.6462 | P5: 40.5216
D6: 40 | E6: 167.7 | F6: 35.6339 | G6: 39.5593 | H6: 39.2095 | M6: 167.7 | N6: 35.6339 | O6: 39.5593 | P6: 39.2095
C7: video 1 | D7: 25 | E7: 270.0672 | F7: 42.2323 | G7: 43.1061 | H7: 43.1311 | M7: 270.0672 | N7: 42.2323 | O7: 43.1061 | P7: 43.1311 | U7: =bdrate($E7:$E10,F7:F10,$M7:$M10,N7:N10) -> 0 | V7: =bdrate($E7:$E10,G7:G10,$M7:$M10,O7:O10) -> 0 | W7: =bdrate($E7:$E10,H7:H10,$M7:$M10,P7:P10) -> 0
D8: 30 | E8: 123.0496 | F8: 39.9227 | G8: 41.8274 | H8: 41.524 | M8: 123.0496 | N8: 39.9227 | O8: 41.8274 | P8: 41.524
D9: 35 | E9: 64.4824 | F9: 37.3268 | G9: 40.5547 | H9: 40.0519 | M9: 64.4824 | N9: 37.3268 | O9: 40.5547 | P9: 40.0519
D10: 40 | E10: 33.7688 | F10: 34.5834 | G10: 39.4498 | H10: 38.7974 | M10: 33.7688 | N10: 34.5834 | O10: 39.4498 | P10: 38.7974
C11: video 2 | D11: 25 | E11: 299.5616 | F11: 41.9068 | G11: 42.5485 | H11: 42.8726 | M11: 299.5616 | N11: 41.9068 | O11: 42.5485 | P11: 42.8726 | U11: =bdrate($E11:$E14,F11:F14,$M11:$M14,N11:N14) -> 0 | V11: =bdrate($E11:$E14,G11:G14,$M11:$M14,O11:O14) -> 0 | W11: =bdrate($E11:$E14,H11:H14,$M11:$M14,P11:P14) -> 0
D12: 30 | E12: 135.3808 | F12: 39.6749 | G12: 41.2256 | H12: 41.3061 | M12: 135.3808 | N12: 39.6749 | O12: 41.2256 | P12: 41.3061
D13: 35 | E13: 71.1232 | F13: 37.1264 | G13: 40.0805 | H13: 39.8692 | M13: 71.1232 | N13: 37.1264 | O13: 40.0805 | P13: 39.8692
D14: 40 | E14: 37.5728 | F14: 34.4071 | G14: 39.0062 | H14: 38.5919 | M14: 37.5728 | N14: 34.4071 | O14: 39.0062 | P14: 38.5919
C15: depth 0 | D15: 34 | E15: 114.7912 | F15: 39.577 | M15: 114.7912 | N15: 39.577 | U15: =bdrate($E15:$E18,F15:F18,$M15:$M18,N15:N18) -> 0
D16: 39 | E16: 38.4328 | F16: 36.4792 | M16: 38.4328 | N16: 36.4792
D17: 42 | E17: 16.5808 | F17: 34.048 | M17: 16.5808 | N17: 34.048
D18: 45 | E18: 8.348 | F18: 31.4596 | M18: 8.348 | N18: 31.4596
C19: depth 1 | D19: 34 | E19: 84.8912 | F19: 37.4367 | M19: 84.8912 | N19: 37.4367 | U19: =bdrate($E19:$E22,F19:F22,$M19:$M22,N19:N22) -> 0
D20: 39 | E20: 27.908 | F20: 34.4631 | M20: 27.908 | N20: 34.4631
D21: 42 | E21: 11.9024 | F21: 31.9623 | M21: 11.9024 | N21: 31.9623
D22: 45 | E22: 5.8008 | F22: 29.255 | M22: 5.8008 | N22: 29.255
C23: depth 2 | D23: 34 | E23: 94.8408 | F23: 36.7743 | M23: 94.8408 | N23: 36.7743 | U23: =bdrate($E23:$E26,F23:F26,$M23:$M26,N23:N26) -> 0
D24: 39 | E24: 30.6912 | F24: 33.6076 | M24: 30.6912 | N24: 33.6076
D25: 42 | E25: 13.212 | F25: 31.0663 | M25: 13.212 | N25: 31.0663
D26: 45 | E26: 6.2112 | F26: 27.8466 | M26: 6.2112 | N26: 27.8466
C27: syn 0.25 | D27: 25 | F27: 42.3272 | G27: 45.3656 | H27: 45.0777 | N27: 42.3272 | O27: 45.3656 | P27: 45.0777
D28: 30 | F28: 40.1247 | G28: 43.7349 | H28: 43.0956 | N28: 40.1247 | O28: 43.7349 | P28: 43.0956
D29: 35 | F29: 37.634 | G29: 42.0515 | H29: 41.2785 | N29: 37.634 | O29: 42.0515 | P29: 41.2785
D30: 40 | F30: 34.9364 | G30: 40.7024 | H30: 39.8276 | N30: 34.9364 | O30: 40.7024 | P30: 39.8276
C31: syn 0.50 | D31: 25 | F31: 42.9352 | G31: 45.9669 | H31: 45.7694 | N31: 42.9352 | O31: 45.9669 | P31: 45.7694
D32: 30 | F32: 40.6378 | G32: 44.2187 | H32: 43.6744 | N32: 40.6378 | O32: 44.2187 | P32: 43.6744
D33: 35 | F33: 38.0601 | G33: 42.3521 | H33: 41.6374 | N33: 38.0601 | O33: 42.3521 | P33: 41.6374
D34: 40 | F34: 35.2755 | G34: 40.9338 | H34: 40.0939 | N34: 35.2755 | O34: 40.9338 | P34: 40.0939
C35: syn 0.75 | D35: 25 | F35: 43.0615 | G35: 45.5838 | H35: 45.7018 | N35: 43.0615 | O35: 45.5838 | P35: 45.7018
D36: 30 | F36: 40.9031 | G36: 43.9675 | H36: 43.7113 | N36: 40.9031 | O36: 43.9675 | P36: 43.7113
D37: 35 | F37: 38.3522 | G37: 42.1207 | H37: 41.6327 | N37: 38.3522 | O37: 42.1207 | P37: 41.6327
D38: 40 | F38: 35.5489 | G38: 40.8027 | H38: 40.1056 | N38: 35.5489 | O38: 40.8027 | P38: 40.1056
C39: syn 1.25 | D39: 25 | F39: 42.9536 | G39: 45.5916 | H39: 45.6738 | N39: 42.9536 | O39: 45.5916 | P39: 45.6738
D40: 30 | F40: 40.8025 | G40: 43.9636 | H40: 43.6852 | N40: 40.8025 | O40: 43.9636 | P40: 43.6852
D41: 35 | F41: 38.2441 | G41: 42.1399 | H41: 41.6187 | N41: 38.2441 | O41: 42.1399 | P41: 41.6187
D42: 40 | F42: 35.4434 | G42: 40.8025 | H42: 40.0762 | N42: 35.4434 | O42: 40.8025 | P42: 40.0762
C43: syn 1.5 | D43: 25 | F43: 42.7555 | G43: 45.8889 | H43: 45.6569 | N43: 42.7555 | O43: 45.8889 | P43: 45.6569
D44: 30 | F44: 40.5046 | G44: 44.1262 | H44: 43.5505 | N44: 40.5046 | O44: 44.1262 | P44: 43.5505
D45: 35 | F45: 37.9505 | G45: 42.3159 | H45: 41.5444 | N45: 37.9505 | O45: 42.3159 | P45: 41.5444
D46: 40 | F46: 35.1641 | G46: 40.9074 | H46: 39.9618 | N46: 35.1641 | O46: 40.9074 | P46: 39.9618
C47: syn 1.75 | D47: 25 | F47: 42.0949 | G47: 45.1402 | H47: 44.8852 | N47: 42.0949 | O47: 45.1402 | P47: 44.8852
D48: 30 | F48: 39.9615 | G48: 43.4581 | H48: 42.9087 | N48: 39.9615 | O48: 43.4581 | P48: 42.9087
D49: 35 | F49: 37.4976 | G49: 41.8754 | H49: 41.1272 | N49: 37.4976 | O49: 41.8754 | P49: 41.1272
D50: 40 | F50: 34.7952 | G50: 40.5635 | H50: 39.6284 | N50: 34.7952 | O50: 40.5635 | P50: 39.6284
C51: overall | D51: 25 | E51: 1748.0968 | I51: 31457.56 | J51: 60.09 | M51: 1748.0968 | Q51: 24986.14 | R51: 49.97 | S51: 334.84 | Y51: =GEOMEAN(Q51:Q54)/GEOMEAN(I51:I54) -> 0.7114427799 | Z51: =GEOMEAN(R51:R54)/GEOMEAN(J51:J54) -> 0.6887635587 | AA51: =GEOMEAN(S51:S54)/GEOMEAN(K51:K54) -> 
D52: 30 | E52: 842.8192 | I52: 25857.58 | J52: 80.76 | M52: 842.8192 | Q52: 19222.17 | R52: 51.6 | S52: 337.82
D53: 35 | E53: 460.2736 | I53: 23371.19 | J53: 68.19 | M53: 460.2736 | Q53: 16271.66 | R53: 45.7 | S53: 333.14
D54: 40 | E54: 265.192 | I54: 22787.11 | J54: 65.79 | M54: 265.192 | Q54: 14200.69 | R54: 41.58 | S54: 336.01
A55: 1024x768 | B55: Kendo | C55: video 0 | D55: 25 | E55: 846.7608 | F55: 43.6049 | G55: 44.9558 | H55: 44.9344 | M55: 846.7608 | N55: 43.6049 | O55: 44.9558 | P55: 44.9344 | U55: =bdrate($E55:$E58,F55:F58,$M55:$M58,N55:N58) -> 0 | V55: =bdrate($E55:$E58,G55:G58,$M55:$M58,O55:O58) -> 0 | W55: =bdrate($E55:$E58,H55:H58,$M55:$M58,P55:P58) -> 0
D56: 30 | E56: 450.8312 | F56: 41.4317 | G56: 44.1114 | H56: 43.4435 | M56: 450.8312 | N56: 41.4317 | O56: 44.1114 | P56: 43.4435
D57: 35 | E57: 256.2232 | F57: 38.945 | G57: 43.0659 | H57: 41.7778 | M57: 256.2232 | N57: 38.945 | O57: 43.0659 | P57: 41.7778
D58: 40 | E58: 153.9592 | F58: 36.3288 | G58: 42.2614 | H58: 40.4402 | M58: 153.9592 | N58: 36.3288 | O58: 42.2614 | P58: 40.4402
C59: video 1 | D59: 25 | E59: 273.2256 | F59: 42.6916 | G59: 44.7501 | H59: 44.1493 | M59: 273.2256 | N59: 42.6916 | O59: 44.7501 | P59: 44.1493 | U59: =bdrate($E59:$E62,F59:F62,$M59:$M62,N59:N62) -> 0 | V59: =bdrate($E59:$E62,G59:G62,$M59:$M62,O59:O62) -> 0 | W59: =bdrate($E59:$E62,H59:H62,$M59:$M62,P59:P62) -> 0
D60: 30 | E60: 122.6528 | F60: 40.3663 | G60: 43.8105 | H60: 42.6527 | M60: 122.6528 | N60: 40.3663 | O60: 43.8105 | P60: 42.6527
D61: 35 | E61: 64.0464 | F61: 37.9254 | G61: 42.8892 | H61: 41.3062 | M61: 64.0464 | N61: 37.9254 | O61: 42.8892 | P61: 41.3062
D62: 40 | E62: 34.5616 | F62: 35.386 | G62: 42.0077 | H62: 39.9896 | M62: 34.5616 | N62: 35.386 | O62: 42.0077 | P62: 39.9896
C63: video 2 | D63: 25 | E63: 290.9704 | F63: 42.3286 | G63: 43.9607 | H63: 43.89 | M63: 290.9704 | N63: 42.3286 | O63: 43.9607 | P63: 43.89 | U63: =bdrate($E63:$E66,F63:F66,$M63:$M66,N63:N66) -> 0 | V63: =bdrate($E63:$E66,G63:G66,$M63:$M66,O63:O66) -> 0 | W63: =bdrate($E63:$E66,H63:H66,$M63:$M66,P63:P66) -> 0
D64: 30 | E64: 128.8408 | F64: 40.1136 | G64: 42.975 | H64: 42.4471 | M64: 128.8408 | N64: 40.1136 | O64: 42.975 | P64: 42.4471
D65: 35 | E65: 67.0528 | F65: 37.7413 | G65: 42.1998 | H65: 41.2048 | M65: 67.0528 | N65: 37.7413 | O65: 42.1998 | P65: 41.2048
D66: 40 | E66: 35.8776 | F66: 35.2396 | G66: 41.405 | H66: 39.9505 | M66: 35.8776 | N66: 35.2396 | O66: 41.405 | P66: 39.9505
C67: depth 0 | D67: 34 | E67: 133.5328 | F67: 39.1932 | M67: 133.5328 | N67: 39.1932 | U67: =bdrate($E67:$E70,F67:F70,$M67:$M70,N67:N70) -> 0
D68: 39 | E68: 46.7088 | F68: 35.2036 | M68: 46.7088 | N68: 35.2036
D69: 42 | E69: 20.1472 | F69: 32.2258 | M69: 20.1472 | N69: 32.2258
D70: 45 | E70: 9.7872 | F70: 29.7892 | M70: 9.7872 | N70: 29.7892
C71: depth 1 | D71: 34 | E71: 105.5576 | F71: 36.1391 | M71: 105.5576 | N71: 36.1391 | U71: =bdrate($E71:$E74,F71:F74,$M71:$M74,N71:N74) -> 0
D72: 39 | E72: 34.8376 | F72: 32.2045 | M72: 34.8376 | N72: 32.2045
D73: 42 | E73: 15.1392 | F73: 29.5293 | M73: 15.1392 | N73: 29.5293
D74: 45 | E74: 7.2472 | F74: 26.9054 | M74: 7.2472 | N74: 26.9054
C75: depth 2 | D75: 34 | E75: 123.2064 | F75: 35.3032 | M75: 123.2064 | N75: 35.3032 | U75: =bdrate($E75:$E78,F75:F78,$M75:$M78,N75:N78) -> 0
D76: 39 | E76: 40.1768 | F76: 31.4919 | M76: 40.1768 | N76: 31.4919
D77: 42 | E77: 17.076 | F77: 28.8166 | M77: 17.076 | N77: 28.8166
D78: 45 | E78: 8.0552 | F78: 26.0842 | M78: 8.0552 | N78: 26.0842
C79: syn 0.25 | D79: 25 | F79: 42.7749 | G79: 46.9889 | H79: 45.7783 | N79: 42.7749 | O79: 46.9889 | P79: 45.7783
D80: 30 | F80: 40.5318 | G80: 45.8063 | H80: 44.027 | N80: 40.5318 | O80: 45.8063 | P80: 44.027
D81: 35 | F81: 38.1744 | G81: 44.6367 | H81: 42.4834 | N81: 38.1744 | O81: 44.6367 | P81: 42.4834
D82: 40 | F82: 35.7029 | G82: 43.6683 | H82: 41.039 | N82: 35.7029 | O82: 43.6683 | P82: 41.039
C83: syn 0.50 | D83: 25 | F83: 43.481 | G83: 47.5971 | H83: 46.607 | N83: 43.481 | O83: 47.5971 | P83: 46.607
D84: 30 | F84: 41.0858 | G84: 46.3128 | H84: 44.7569 | N84: 41.0858 | O84: 46.3128 | P84: 44.7569
D85: 35 | F85: 38.5999 | G85: 44.9746 | H85: 42.9848 | N85: 38.5999 | O85: 44.9746 | P85: 42.9848
D86: 40 | F86: 36.0169 | G86: 43.9297 | H86: 41.4421 | N86: 36.0169 | O86: 43.9297 | P86: 41.4421
C87: syn 0.75 | D87: 25 | F87: 43.652 | G87: 47.0536 | H87: 46.5377 | N87: 43.652 | O87: 47.0536 | P87: 46.5377
D88: 30 | F88: 41.3595 | G88: 46.0013 | H88: 44.8018 | N88: 41.3595 | O88: 46.0013 | P88: 44.8018
D89: 35 | F89: 38.8564 | G89: 44.7232 | H89: 42.9656 | N89: 38.8564 | O89: 44.7232 | P89: 42.9656
D90: 40 | F90: 36.2427 | G90: 43.7719 | H90: 41.4503 | N90: 36.2427 | O90: 43.7719 | P90: 41.4503
C91: syn 1.25 | D91: 25 | F91: 43.4897 | G91: 47.04 | H91: 46.5948 | N91: 43.4897 | O91: 47.04 | P91: 46.5948
D92: 30 | F92: 41.2011 | G92: 46.0246 | H92: 44.8509 | N92: 41.2011 | O92: 46.0246 | P92: 44.8509
D93: 35 | F93: 38.7112 | G93: 44.7676 | H93: 42.9817 | N93: 38.7112 | O93: 44.7676 | P93: 42.9817
D94: 40 | F94: 36.0959 | G94: 43.7946 | H94: 41.435 | N94: 36.0959 | O94: 43.7946 | P94: 41.435
C95: syn 1.5 | D95: 25 | F95: 43.221 | G95: 47.3066 | H95: 46.598 | N95: 43.221 | O95: 47.3066 | P95: 46.598
D96: 30 | F96: 40.865 | G96: 46.1262 | H96: 44.7559 | N96: 40.865 | O96: 46.1262 | P96: 44.7559
D97: 35 | F97: 38.3868 | G97: 44.927 | H97: 42.9783 | N97: 38.3868 | O97: 44.927 | P97: 42.9783
D98: 40 | F98: 35.8033 | G98: 43.9219 | H98: 41.4065 | N98: 35.8033 | O98: 43.9219 | P98: 41.4065
C99: syn 1.75 | D99: 25 | F99: 42.4667 | G99: 46.3613 | H99: 45.7468 | N99: 42.4667 | O99: 46.3613 | P99: 45.7468
D100: 30 | F100: 40.27 | G100: 45.22 | H100: 44.0122 | N100: 40.27 | O100: 45.22 | P100: 44.0122
D101: 35 | F101: 37.951 | G101: 44.2267 | H101: 42.4767 | N101: 37.951 | O101: 44.2267 | P101: 42.4767
D102: 40 | F102: 35.4628 | G102: 43.3448 | H102: 41.0131 | N102: 35.4628 | O102: 43.3448 | P102: 41.0131
C103: overall | D103: 25 | E103: 1779.044 | I103: 35635.2 | J103: 53.55 | M103: 1779.044 | Q103: 27928.36 | R103: 44.49 | S103: 311.86 | Y103: =GEOMEAN(Q103:Q106)/GEOMEAN(I103:I106) -> 0.7104893539 | Z103: =GEOMEAN(R103:R106)/GEOMEAN(J103:J106) -> 0.7152737986 | AA103: =GEOMEAN(S103:S106)/GEOMEAN(K103:K106) -> 
D104: 30 | E104: 829.8384 | I104: 29860.68 | J104: 58.27 | M104: 829.8384 | Q104: 22010.43 | R104: 45.24 | S104: 331.59
D105: 35 | E105: 445.4752 | I105: 26339.85 | J105: 70.76 | M105: 445.4752 | Q105: 18327.11 | R105: 43.01 | S105: 332.6
D106: 40 | E106: 255.2784 | I106: 24799.08 | J106: 66.67 | M106: 255.2784 | Q106: 15721.36 | R106: 44.51 | S106: 331.53
A107: 1024x768 | B107: Newspaper_CC | C107: video 0 | D107: 25 | E107: 949.8848 | F107: 41.3556 | G107: 44.1509 | H107: 44.2123 | M107: 949.8848 | N107: 41.3556 | O107: 44.1509 | P107: 44.2123 | U107: =bdrate($E107:$E110,F107:F110,$M107:$M110,N107:N110) -> 0 | V107: =bdrate($E107:$E110,G107:G110,$M107:$M110,O107:O110) -> 0 | W107: =bdrate($E107:$E110,H107:H110,$M107:$M110,P107:P110) -> 0
D108: 30 | E108: 499.7776 | F108: 38.9893 | G108: 42.521 | H108: 42.5372 | M108: 499.7776 | N108: 38.9893 | O108: 42.521 | P108: 42.5372
D109: 35 | E109: 275.0168 | F109: 36.4475 | G109: 40.7526 | H109: 40.7023 | M109: 275.0168 | N109: 36.4475 | O109: 40.7526 | P109: 40.7023
D110: 40 | E110: 159.2824 | F110: 33.8712 | G110: 39.5081 | H110: 39.4038 | M110: 159.2824 | N110: 33.8712 | O110: 39.5081 | P110: 39.4038
C111: video 1 | D111: 25 | E111: 304.1224 | F111: 40.3058 | G111: 42.9539 | H111: 43.068 | M111: 304.1224 | N111: 40.3058 | O111: 42.9539 | P111: 43.068 | U111: =bdrate($E111:$E114,F111:F114,$M111:$M114,N111:N114) -> 0 | V111: =bdrate($E111:$E114,G111:G114,$M111:$M114,O111:O114) -> 0 | W111: =bdrate($E111:$E114,H111:H114,$M111:$M114,P111:P114) -> 0
D112: 30 | E112: 129.3376 | F112: 37.9645 | G112: 41.2932 | H112: 41.4328 | M112: 129.3376 | N112: 37.9645 | O112: 41.2932 | P112: 41.4328
D113: 35 | E113: 64.144 | F113: 35.5317 | G113: 40.0316 | H113: 40.0645 | M113: 64.144 | N113: 35.5317 | O113: 40.0316 | P113: 40.0645
D114: 40 | E114: 34.5152 | F114: 33.1174 | G114: 38.9611 | H114: 38.9568 | M114: 34.5152 | N114: 33.1174 | O114: 38.9611 | P114: 38.9568
C115: video 2 | D115: 25 | E115: 347.5544 | F115: 39.9021 | G115: 42.8496 | H115: 42.759 | M115: 347.5544 | N115: 39.9021 | O115: 42.8496 | P115: 42.759 | U115: =bdrate($E115:$E118,F115:F118,$M115:$M118,N115:N118) -> 0 | V115: =bdrate($E115:$E118,G115:G118,$M115:$M118,O115:O118) -> 0 | W115: =bdrate($E115:$E118,H115:H118,$M115:$M118,P115:P118) -> 0
D116: 30 | E116: 149.8272 | F116: 37.5201 | G116: 41.3721 | H116: 41.1017 | M116: 149.8272 | N116: 37.5201 | O116: 41.3721 | P116: 41.1017
D117: 35 | E117: 75.2032 | F117: 35.0724 | G117: 40.0808 | H117: 39.6701 | M117: 75.2032 | N117: 35.0724 | O117: 40.0808 | P117: 39.6701
D118: 40 | E118: 39.8808 | F118: 32.5546 | G118: 39.0737 | H118: 38.5773 | M118: 39.8808 | N118: 32.5546 | O118: 39.0737 | P118: 38.5773
C119: depth 0 | D119: 34 | E119: 188.5224 | F119: 38.2819 | M119: 188.5224 | N119: 38.2819 | U119: =bdrate($E119:$E122,F119:F122,$M119:$M122,N119:N122) -> 0
D120: 39 | E120: 63.2096 | F120: 35.0177 | M120: 63.2096 | N120: 35.0177
D121: 42 | E121: 25.8472 | F121: 32.4102 | M121: 25.8472 | N121: 32.4102
D122: 45 | E122: 11.5968 | F122: 29.5144 | M122: 11.5968 | N122: 29.5144
C123: depth 1 | D123: 34 | E123: 122.4528 | F123: 37.1932 | M123: 122.4528 | N123: 37.1932 | U123: =bdrate($E123:$E126,F123:F126,$M123:$M126,N123:N126) -> 0
D124: 39 | E124: 43.2664 | F124: 34.1368 | M124: 43.2664 | N124: 34.1368
D125: 42 | E125: 18.6456 | F125: 31.5214 | M125: 18.6456 | N125: 31.5214
D126: 45 | E126: 8.4904 | F126: 28.2439 | M126: 8.4904 | N126: 28.2439
C127: depth 2 | D127: 34 | E127: 109.7656 | F127: 37.0955 | M127: 109.7656 | N127: 37.0955 | U127: =bdrate($E127:$E130,F127:F130,$M127:$M130,N127:N130) -> 0
D128: 39 | E128: 35.9936 | F128: 34.1017 | M128: 35.9936 | N128: 34.1017
D129: 42 | E129: 15.4128 | F129: 31.563 | M129: 15.4128 | N129: 31.563
D130: 45 | E130: 7.6288 | F130: 28.887 | M130: 7.6288 | N130: 28.887
C131: syn 0.25 | D131: 25 | F131: 39.92 | G131: 45.2631 | H131: 45.4457 | N131: 39.92 | O131: 45.2631 | P131: 45.4457
D132: 30 | F132: 37.7775 | G132: 43.45 | H132: 43.6229 | N132: 37.7775 | O132: 43.45 | P132: 43.6229
D133: 35 | F133: 35.5043 | G133: 41.8804 | H133: 41.9043 | N133: 35.5043 | O133: 41.8804 | P133: 41.9043
D134: 40 | F134: 33.1331 | G134: 40.5346 | H134: 40.5408 | N134: 33.1331 | O134: 40.5346 | P134: 40.5408
C135: syn 0.50 | D135: 25 | F135: 40.4696 | G135: 46.1262 | H135: 46.173 | N135: 40.4696 | O135: 46.1262 | P135: 46.173
D136: 30 | F136: 38.1985 | G136: 44.2211 | H136: 44.2345 | N136: 38.1985 | O136: 44.2211 | P136: 44.2345
D137: 35 | F137: 35.8007 | G137: 42.393 | H137: 42.2707 | N137: 35.8007 | O137: 42.393 | P137: 42.2707
D138: 40 | F138: 33.3338 | G138: 40.9091 | H138: 40.7735 | N138: 33.3338 | O138: 40.9091 | P138: 40.7735
C139: syn 0.75 | D139: 25 | F139: 40.9536 | G139: 46.0258 | H139: 46.094 | N139: 40.9536 | O139: 46.0258 | P139: 46.094
D140: 30 | F140: 38.6581 | G140: 44.2571 | H140: 44.2335 | N140: 38.6581 | O140: 44.2571 | P140: 44.2335
D141: 35 | F141: 36.198 | G141: 42.3196 | H141: 42.1938 | N141: 36.198 | O141: 42.3196 | P141: 42.1938
D142: 40 | F142: 33.6743 | G142: 40.856 | H142: 40.6999 | N142: 33.6743 | O142: 40.856 | P142: 40.6999
C143: syn 1.25 | D143: 25 | F143: 40.927 | G143: 45.8634 | H143: 45.9432 | N143: 40.927 | O143: 45.8634 | P143: 45.9432
D144: 30 | F144: 38.5839 | G144: 44.0684 | H144: 44.0383 | N144: 38.5839 | O144: 44.0684 | P144: 44.0383
D145: 35 | F145: 36.138 | G145: 42.1479 | H145: 41.9741 | N145: 36.138 | O145: 42.1479 | P145: 41.9741
D146: 40 | F146: 33.5933 | G146: 40.7093 | H146: 40.4879 | N146: 33.5933 | O146: 40.7093 | P146: 40.4879
C147: syn 1.5 | D147: 25 | F147: 40.3114 | G147: 45.8999 | H147: 45.8691 | N147: 40.3114 | O147: 45.8999 | P147: 45.8691
D148: 30 | F148: 37.9761 | G148: 44.058 | H148: 43.8562 | N148: 37.9761 | O148: 44.058 | P148: 43.8562
D149: 35 | F149: 35.5716 | G149: 42.2211 | H149: 41.861 | N149: 35.5716 | O149: 42.2211 | P149: 41.861
D150: 40 | F150: 33.0647 | G150: 40.7804 | H150: 40.3657 | N150: 33.0647 | O150: 40.7804 | P150: 40.3657
C151: syn 1.75 | D151: 25 | F151: 39.9383 | G151: 45.0815 | H151: 45.0412 | N151: 39.9383 | O151: 45.0815 | P151: 45.0412
D152: 30 | F152: 37.6101 | G152: 43.3709 | H152: 43.12 | N152: 37.6101 | O152: 43.3709 | P152: 43.12
D153: 35 | F153: 35.1981 | G153: 41.7782 | H153: 41.3457 | N153: 35.1981 | O153: 41.7782 | P153: 41.3457
D154: 40 | F154: 32.6929 | G154: 40.4879 | H154: 39.9654 | N154: 32.6929 | O154: 40.4879 | P154: 39.9654
C155: overall | D155: 25 | E155: 2028.0928 | I155: 30191.72 | J155: 69.25 | M155: 2028.0928 | Q155: 22796.63 | R155: 44.92 | S155: 331.29 | Y155: =GEOMEAN(Q155:Q158)/GEOMEAN(I155:I158) -> 0.7167027947 | Z155: =GEOMEAN(R155:R158)/GEOMEAN(J155:J158) -> 0.6784880315 | AA155: =GEOMEAN(S155:S158)/GEOMEAN(K155:K158) -> 
D156: 30 | E156: 927.2024 | I156: 24795.02 | J156: 67.5 | M156: 927.2024 | Q156: 18316.69 | R156: 43.21 | S156: 340.68
D157: 35 | E157: 480.06 | I157: 21873.1 | J157: 62.84 | M157: 480.06 | Q157: 15964.39 | R157: 45.46 | S157: 332.91
D158: 40 | E158: 267.1848 | I158: 21858.71 | J158: 63.32 | M158: 267.1848 | Q158: 14166.86 | R158: 44.67 | S158: 335.43
A159: 1920x1088 | B159: GT_Fly | C159: video 0 | D159: 25 | E159: 3712.6184 | F159: 40.2538 | G159: 45.4577 | H159: 46.2984 | M159: 3712.6184 | N159: 40.2538 | O159: 45.4577 | P159: 46.2984 | U159: =bdrate($E159:$E162,F159:F162,$M159:$M162,N159:N162) -> 0 | V159: =bdrate($E159:$E162,G159:G162,$M159:$M162,O159:O162) -> 0 | W159: =bdrate($E159:$E162,H159:H162,$M159:$M162,P159:P162) -> 0
D160: 30 | E160: 1616.476 | F160: 37.82 | G160: 43.6276 | H160: 44.4592 | M160: 1616.476 | N160: 37.82 | O160: 43.6276 | P160: 44.4592
D161: 35 | E161: 756.4992 | F161: 35.6216 | G161: 41.7991 | H161: 42.6216 | M161: 756.4992 | N161: 35.6216 | O161: 41.7991 | P161: 42.6216
D162: 40 | E162: 365.296 | F162: 33.4624 | G162: 40.5611 | H162: 41.3894 | M162: 365.296 | N162: 33.4624 | O162: 40.5611 | P162: 41.3894
C163: video 1 | D163: 25 | E163: 517.9672 | F163: 39.7508 | G163: 45.3254 | H163: 46.1771 | M163: 517.9672 | N163: 39.7508 | O163: 45.3254 | P163: 46.1771 | U163: =bdrate($E163:$E166,F163:F166,$M163:$M166,N163:N166) -> 0 | V163: =bdrate($E163:$E166,G163:G166,$M163:$M166,O163:O166) -> 0 | W163: =bdrate($E163:$E166,H163:H166,$M163:$M166,P163:P166) -> 0
D164: 30 | E164: 181.052 | F164: 37.4781 | G164: 43.5712 | H164: 44.413 | M164: 181.052 | N164: 37.4781 | O164: 43.5712 | P164: 44.413
D165: 35 | E165: 74.436 | F165: 35.3884 | G165: 41.8033 | H165: 42.6353 | M165: 74.436 | N165: 35.3884 | O165: 41.8033 | P165: 42.6353
D166: 40 | E166: 34.7136 | F166: 33.3015 | G166: 40.564 | H166: 41.4005 | M166: 34.7136 | N166: 33.3015 | O166: 40.564 | P166: 41.4005
C167: video 2 | D167: 25 | E167: 538.6744 | F167: 39.7139 | G167: 45.2829 | H167: 46.1381 | M167: 538.6744 | N167: 39.7139 | O167: 45.2829 | P167: 46.1381 | U167: =bdrate($E167:$E170,F167:F170,$M167:$M170,N167:N170) -> 0 | V167: =bdrate($E167:$E170,G167:G170,$M167:$M170,O167:O170) -> 0 | W167: =bdrate($E167:$E170,H167:H170,$M167:$M170,P167:P170) -> 0
D168: 30 | E168: 189.6872 | F168: 37.437 | G168: 43.5267 | H168: 44.3728 | M168: 189.6872 | N168: 37.437 | O168: 43.5267 | P168: 44.3728
D169: 35 | E169: 78.1216 | F169: 35.3439 | G169: 41.7606 | H169: 42.5956 | M169: 78.1216 | N169: 35.3439 | O169: 41.7606 | P169: 42.5956
D170: 40 | E170: 36.6232 | F170: 33.2478 | G170: 40.5178 | H170: 41.359 | M170: 36.6232 | N170: 33.2478 | O170: 40.5178 | P170: 41.359
C171: depth 0 | D171: 34 | E171: 283.2704 | F171: 43.1903 | M171: 283.2704 | N171: 43.1903 | U171: =bdrate($E171:$E174,F171:F174,$M171:$M174,N171:N174) -> 0
D172: 39 | E172: 95.3136 | F172: 38.8704 | M172: 95.3136 | N172: 38.8704
D173: 42 | E173: 36.7992 | F173: 35.1084 | M173: 36.7992 | N173: 35.1084
D174: 45 | E174: 15.7568 | F174: 31.621 | M174: 15.7568 | N174: 31.621
C175: depth 1 | D175: 34 | E175: 99.6024 | F175: 42.3394 | M175: 99.6024 | N175: 42.3394 | U175: =bdrate($E175:$E178,F175:F178,$M175:$M178,N175:N178) -> 0
D176: 39 | E176: 29.0888 | F176: 38.1203 | M176: 29.0888 | N176: 38.1203
D177: 42 | E177: 12.3752 | F177: 34.4314 | M177: 12.3752 | N177: 34.4314
D178: 45 | E178: 6.1664 | F178: 30.9691 | M178: 6.1664 | N178: 30.9691
C179: depth 2 | D179: 34 | E179: 103.0848 | F179: 42.2987 | M179: 103.0848 | N179: 42.2987 | U179: =bdrate($E179:$E182,F179:F182,$M179:$M182,N179:N182) -> 0
D180: 39 | E180: 30.7384 | F180: 38.0968 | M180: 30.7384 | N180: 38.0968
D181: 42 | E181: 12.8792 | F181: 34.5325 | M181: 12.8792 | N181: 34.5325
D182: 45 | E182: 6.3424 | F182: 31.1219 | M182: 6.3424 | N182: 31.1219
C183: syn 0.25 | D183: 25 | F183: 39.8524 | G183: 46.5055 | H183: 46.5192 | N183: 39.8524 | O183: 46.5055 | P183: 46.5192
D184: 30 | F184: 37.5962 | G184: 44.7385 | H184: 45.0415 | N184: 37.5962 | O184: 44.7385 | P184: 45.0415
D185: 35 | F185: 35.5114 | G185: 42.7823 | H185: 43.4126 | N185: 35.5114 | O185: 42.7823 | P185: 43.4126
D186: 40 | F186: 33.4118 | G186: 41.3915 | H186: 42.0883 | N186: 33.4118 | O186: 41.3915 | P186: 42.0883
C187: syn 0.50 | D187: 25 | F187: 40.0349 | G187: 46.3115 | H187: 46.774 | N187: 40.0349 | O187: 46.3115 | P187: 46.774
D188: 30 | F188: 37.7438 | G188: 44.6702 | H188: 45.2136 | N188: 37.7438 | O188: 44.6702 | P188: 45.2136
D189: 35 | F189: 35.6106 | G189: 42.8103 | H189: 43.4501 | N189: 35.6106 | O189: 42.8103 | P189: 43.4501
D190: 40 | F190: 33.4765 | G190: 41.4829 | H190: 42.1537 | N190: 33.4765 | O190: 41.4829 | P190: 42.1537
C191: syn 0.75 | D191: 25 | F191: 40.2885 | G191: 46.964 | H191: 47.7968 | N191: 40.2885 | O191: 46.964 | P191: 47.7968
D192: 30 | F192: 37.8743 | G192: 45.0511 | H192: 45.867 | N192: 37.8743 | O192: 45.0511 | P192: 45.867
D193: 35 | F193: 35.6753 | G193: 43.039 | H193: 43.8291 | N193: 35.6753 | O193: 43.039 | P193: 43.8291
D194: 40 | F194: 33.5089 | G194: 41.658 | H194: 42.4402 | N194: 33.5089 | O194: 41.658 | P194: 42.4402
C195: syn 1.25 | D195: 25 | F195: 40.2657 | G195: 46.9634 | H195: 47.7878 | N195: 40.2657 | O195: 46.9634 | P195: 47.7878
D196: 30 | F196: 37.859 | G196: 45.0509 | H196: 45.8534 | N196: 37.859 | O196: 45.0509 | P196: 45.8534
D197: 35 | F197: 35.6673 | G197: 43.0318 | H197: 43.8135 | N197: 35.6673 | O197: 43.0318 | P197: 43.8135
D198: 40 | F198: 33.5043 | G198: 41.6502 | H198: 42.4194 | N198: 33.5043 | O198: 41.6502 | P198: 42.4194
C199: syn 1.5 | D199: 25 | F199: 40.0432 | G199: 46.2877 | H199: 47.0057 | N199: 40.0432 | O199: 46.2877 | P199: 47.0057
D200: 30 | F200: 37.7181 | G200: 44.6467 | H200: 45.3161 | N200: 37.7181 | O200: 44.6467 | P200: 45.3161
... 419 more rows

Sheet raw data
A1: SeqClass | B1: Bitstream | C1: Total Rate [kbps] | D1: L0 Rate [kbps] | E1: L0 Y-PSNR [dB] | F1: L0 U-PSNR [dB] | G1: L0 V-PSNR [dB] | H1: L0 SSIM | I1: L1 Rate [kbps] | J1: L1 Y-PSNR [dB] | K1: L1 U-PSNR [dB] | L1: L1 V-PSNR [dB] | M1: L1 SSIM | N1: L2 Rate [kbps] | O1: L2 Y-PSNR [dB] | P1: L2 U-PSNR [dB] | Q1: L2 V-PSNR [dB] | R1: L2 SSIM | S1: L3 Rate [kbps] | T1: L3 Y-PSNR [dB] | U1: L3 U-PSNR [dB] | V1: L3 V-PSNR [dB] | W1: L3 SSIM | X1: L4 Rate [kbps] | Y1: L4 Y-PSNR [dB] | Z1: L4 U-PSNR [dB] | AA1: L4 V-PSNR [dB] | AB1: L4 SSIM | AC1: L5 Rate [kbps] | AD1: L5 Y-PSNR [dB] | AE1: L5 U-PSNR [dB] | AF1: L5 V-PSNR [dB] | AG1: L5 SSIM | AH1: S0 Y-PSNR [dB] | AI1: S0 U-PSNR [dB] | AJ1: S0 V-PSNR [dB] | AK1: S0 SSIM | AL1: S1 Y-PSNR [dB] | AM1: S1 U-PSNR [dB] | AN1: S1 V-PSNR [dB] | AO1: S1 SSIM | AP1: S2 Y-PSNR [dB] | AQ1: S2 U-PSNR [dB] | AR1: S2 V-PSNR [dB] | AS1: S2 SSIM | AT1: S3 Y-PSNR [dB] | AU1: S3 U-PSNR [dB] | AV1: S3 V-PSNR [dB] | AW1: S3 SSIM | AX1: S4 Y-PSNR [dB] | AY1: S4 U-PSNR [dB] | AZ1: S4 V-PSNR [dB] | BA1: S4 SSIM | BB1: S5 Y-PSNR [dB] | BC1: S5 U-PSNR [dB] | BD1: S5 V-PSNR [dB] | BE1: S5 SSIM | BF1: Match L0 | BG1: Match L1 | BH1: Match L2 | BI1: Match L3 | BJ1: Match L4 | BK1: Match L5 | BL1: Pixels | BM1: Lines | BN1: Frame rate | BO1: Decoded Frames | BP1: inputBitDepth | BQ1: outputBitDepth | BR1: encTime | BS1: decTime
A2: 1 | B2: Poznan_Hall2_1920x1088_25_3V_baseCfg_3view+depth_FTBE200_QP25+34+25+34+25+34 | C2: 1480.72 | D2: 809.72 | E2: 42.1156 | F2: 48.4267 | G2: 48.1354 | H2: 0.9912 | I2: 66.122 | J2: 46.0383 | K2: 99.99 | L2: 99.99 | M2: 0.9933 | N2: 248.999 | O2: 41.8334 | P2: 48.1745 | Q2: 47.5013 | R2: 0.9903 | S2: 46.373 | T2: 44.7026 | U2: 99.99 | V2: 99.99 | W2: 0.9916 | X2: 259.435 | Y2: 41.6855 | Z2: 47.2512 | AA2: 46.6628 | AB2: 0.9902 | AC2: 45.233 | AD2: 44.4693 | AE2: 99.99 | AF2: 99.99 | AG2: 0.9915 | AH2: 42.8796 | AI2: 48.1328 | AJ2: 47.2412 | AK2: 0.9926 | AL2: 43.6135 | AM2: 49.047 | AN2: 48.4453 | AO2: 0.994 | AP2: 43.1532 | AQ2: 49.2418 | AR2: 48.7801 | AS2: 0.9934 | AT2: 43.2685 | AU2: 49.1085 | AV2: 49.0173 | AW2: 0.9934 | AX2: 43.7514 | AY2: 48.8293 | AZ2: 49.2052 | BA2: 0.9942 | BB2: 42.9404 | BC2: 47.5964 | BD2: 48.1554 | BE2: 0.9928 | BF2: 1 | BG2: 1 | BH2: 1 | BI2: 1 | BJ2: 1 | BK2: 1 | BL2: 1920 | BM2: 1088 | BN2: 25 | BO2: 200 | BP2: 8 | BQ2: 8 | BR2: 34345.6 | BS2: 83.88
A3: 1 | B3: Poznan_Hall2_1920x1088_25_3V_baseCfg_3view+depth_FTBE200_QP30+39+30+39+30+39 | C3: 605.838 | D3: 345.293 | E3: 41.1503 | F3: 47.4702 | G3: 47.2913 | H3: 0.9879 | I3: 27.253 | J3: 42.651 | K3: 99.99 | L3: 99.99 | M3: 0.9878 | N3: 95.956 | O3: 40.8389 | P3: 47.0649 | Q3: 46.5824 | R3: 0.9866 | S3: 18.163 | T3: 41.4622 | U3: 99.99 | V3: 99.99 | W3: 0.9851 | X3: 96.958 | Y3: 40.7485 | Z3: 46.3056 | AA3: 45.5275 | AB3: 0.9867 | AC3: 17.377 | AD3: 41.4411 | AE3: 99.99 | AF3: 99.99 | AG3: 0.9858 | AH3: 41.7194 | AI3: 46.9402 | AJ3: 46.5067 | AK3: 0.9893 | AL3: 42.3052 | AM3: 47.8228 | AN3: 47.4951 | AO3: 0.9909 | AP3: 42.003 | AQ3: 48.2194 | AR3: 47.9159 | AS3: 0.9903 | AT3: 42.1234 | AU3: 48.1481 | AV3: 48.1133 | AW3: 0.9904 | AX3: 42.4808 | AY3: 47.6612 | AZ3: 48.0359 | BA3: 0.9912 | BB3: 41.8301 | BC3: 46.5989 | BD3: 47.0488 | BE3: 0.9898 | BF3: 1 | BG3: 1 | BH3: 1 | BI3: 1 | BJ3: 1 | BK3: 1 | BL3: 1920 | BM3: 1088 | BN3: 25 | BO3: 200 | BP3: 8 | BQ3: 8 | BR3: 28179.35 | BS3: 105.45
A4: 1 | B4: Poznan_Hall2_1920x1088_25_3V_baseCfg_3view+depth_FTBE200_QP35+42+35+42+35+42 | C4: 309.512 | D4: 177.049 | E4: 39.7547 | F4: 46.0493 | G4: 45.9357 | H4: 0.9812 | I4: 13.746 | J4: 39.8763 | K4: 99.99 | L4: 99.99 | M4: 0.9802 | N4: 47.685 | O4: 39.419 | P4: 45.8892 | Q4: 45.5493 | R4: 0.9794 | S4: 9.099 | T4: 38.2158 | U4: 99.99 | V4: 99.99 | W4: 0.9763 | X4: 48.43 | Y4: 39.4032 | Z4: 45.375 | AA4: 44.5863 | AB4: 0.98 | AC4: 8.665 | AD4: 38.6905 | AE4: 99.99 | AF4: 99.99 | AG4: 0.9775 | AH4: 40.1406 | AI4: 45.8221 | AJ4: 45.5349 | AK4: 0.9827 | AL4: 40.6005 | AM4: 46.5045 | AN4: 46.2418 | AO4: 0.9845 | AP4: 40.4304 | AQ4: 46.7555 | AR4: 46.5938 | AS4: 0.984 | AT4: 40.5407 | AU4: 46.7402 | AV4: 46.7585 | AW4: 0.9843 | AX4: 40.8151 | AY4: 46.372 | AZ4: 46.7409 | BA4: 0.9852 | BB4: 40.3089 | BC4: 45.5964 | BD4: 46.0107 | BE4: 0.9837 | BF4: 1 | BG4: 1 | BH4: 1 | BI4: 1 | BJ4: 1 | BK4: 1 | BL4: 1920 | BM4: 1088 | BN4: 25 | BO4: 200 | BP4: 8 | BQ4: 8 | BR4: 26953.79 | BS4: 112.81
A5: 1 | B5: Poznan_Hall2_1920x1088_25_3V_baseCfg_3view+depth_FTBE200_QP40+45+40+45+40+45 | C5: 172.337 | D5: 98.628 | E5: 38.0121 | F5: 44.8708 | G5: 44.775 | H5: 0.97 | I5: 7.805 | J5: 36.177 | K5: 99.99 | L5: 99.99 | M5: 0.9674 | N5: 25.406 | O5: 37.6316 | P5: 44.8029 | Q5: 44.4868 | R5: 0.9675 | S5: 5.197 | T5: 34.6905 | U5: 99.99 | V5: 99.99 | W5: 0.9629 | X5: 25.436 | Y5: 37.6742 | Z5: 44.3987 | AA5: 43.4665 | AB5: 0.9686 | AC5: 5.027 | AD5: 35.4389 | AE5: 99.99 | AF5: 99.99 | AG5: 0.9641 | AH5: 38.2126 | AI5: 44.8825 | AJ5: 44.4711 | AK5: 0.9715 | AL5: 38.5768 | AM5: 45.3549 | AN5: 45.0372 | AO5: 0.9736 | AP5: 38.5276 | AQ5: 45.5772 | AR5: 45.4291 | AS5: 0.9731 | AT5: 38.6038 | AU5: 45.6225 | AV5: 45.5506 | AW5: 0.9735 | AX5: 38.8093 | AY5: 45.2216 | AZ5: 45.4528 | BA5: 0.9747 | BB5: 38.4524 | BC5: 44.6852 | BD5: 44.8305 | BE5: 0.973 | BF5: 1 | BG5: 1 | BH5: 1 | BI5: 1 | BJ5: 1 | BK5: 1 | BL5: 1920 | BM5: 1088 | BN5: 25 | BO5: 200 | BP5: 8 | BQ5: 8 | BR5: 24908.11 | BS5: 94.78
A6: 2 | B6: Poznan_Street_1920x1088_25_3V_baseCfg_3view+depth_FTBE250_QP25+34+25+34+25+34 | C6: 4213.9352 | D6: 2440.5952 | E6: 39.8618 | F6: 46.7488 | G6: 46.0332 | H6: 0.993 | I6: 162.8688 | J6: 43.8848 | K6: 99.99 | L6: 99.99 | M6: 0.9887 | N6: 699.9864 | O6: 38.9822 | P6: 46.5996 | Q6: 44.735 | R6: 0.9915 | S6: 100.6208 | T6: 42.3278 | U6: 99.99 | V6: 99.99 | W6: 0.9841 | X6: 688.5512 | Y6: 38.9156 | Z6: 46.4269 | AA6: 46.1272 | AB6: 0.9916 | AC6: 116.4824 | AD6: 41.7895 | AE6: 99.99 | AF6: 99.99 | AG6: 0.9819 | AH6: 40.0029 | AI6: 46.6624 | AJ6: 46.0054 | AK6: 0.9932 | AL6: 40.711 | AM6: 47.3851 | AN6: 46.8806 | AO6: 0.9943 | AP6: 40.6155 | AQ6: 47.5631 | AR6: 47.1993 | AS6: 0.9941 | AT6: 40.5714 | AU6: 47.4814 | AV6: 47.0142 | AW6: 0.9942 | AX6: 40.6057 | AY6: 47.048 | AZ6: 46.8107 | BA6: 0.9944 | BB6: 39.909 | BC6: 46.2142 | BD6: 46.3935 | BE6: 0.9933 | BF6: 1 | BG6: 1 | BH6: 1 | BI6: 1 | BJ6: 1 | BK6: 1 | BL6: 1920 | BM6: 1088 | BN6: 25 | BO6: 250 | BP6: 8 | BQ6: 8 | BR6: 47779.08 | BS6: 104.87
A7: 2 | B7: Poznan_Street_1920x1088_25_3V_baseCfg_3view+depth_FTBE250_QP30+39+30+39+30+39 | C7: 1450.5456 | D7: 956.436 | E7: 37.9028 | F7: 45.311 | G7: 44.5502 | H7: 0.9864 | I7: 49.2232 | J7: 40.7814 | K7: 99.99 | L7: 99.99 | M7: 0.9768 | N7: 194.5984 | O7: 37.1365 | P7: 45.1665 | Q7: 43.1048 | R7: 0.9845 | S7: 24.6912 | T7: 39.5524 | U7: 99.99 | V7: 99.99 | W7: 0.9718 | X7: 192.148 | Y7: 36.9522 | Z7: 44.989 | AA7: 44.7098 | AB7: 0.9843 | AC7: 28.6184 | AD7: 39.0528 | AE7: 99.99 | AF7: 99.99 | AG7: 0.9682 | AH7: 37.9301 | AI7: 45.1289 | AJ7: 44.3334 | AK7: 0.9864 | AL7: 38.4159 | AM7: 45.6893 | AN7: 45.1251 | AO7: 0.9875 | AP7: 38.4106 | AQ7: 46.0131 | AR7: 45.5811 | AS7: 0.9875 | AT7: 38.3524 | AU7: 45.9222 | AV7: 45.3802 | AW7: 0.9875 | AX7: 38.2739 | AY7: 45.5176 | AZ7: 45.2024 | BA7: 0.9875 | BB7: 37.7461 | BC7: 44.898 | BD7: 44.8724 | BE7: 0.9864 | BF7: 1 | BG7: 1 | BH7: 1 | BI7: 1 | BJ7: 1 | BK7: 1 | BL7: 1920 | BM7: 1088 | BN7: 25 | BO7: 250 | BP7: 8 | BQ7: 8 | BR7: 39044.16 | BS7: 98.9
A8: 2 | B8: Poznan_Street_1920x1088_25_3V_baseCfg_3view+depth_FTBE250_QP35+42+35+42+35+42 | C8: 655.3072 | D8: 461.7792 | E8: 35.8824 | F8: 43.5542 | G8: 42.8249 | H8: 0.9745 | I8: 20.0888 | J8: 37.298 | K8: 99.99 | L8: 99.99 | M8: 0.9515 | N8: 74.9408 | O8: 35.2424 | P8: 43.6716 | Q8: 41.8239 | R8: 0.9721 | S8: 9.4432 | T8: 36.4196 | U8: 99.99 | V8: 99.99 | W8: 0.9462 | X8: 73.7616 | Y8: 34.978 | Z8: 43.4785 | AA8: 43.1245 | AB8: 0.9714 | AC8: 10.4632 | AD8: 36.065 | AE8: 99.99 | AF8: 99.99 | AG8: 0.944 | AH8: 35.8858 | AI8: 43.6622 | AJ8: 43.0096 | AK8: 0.9744 | AL8: 36.2461 | AM8: 44.0117 | AN8: 43.5544 | AO8: 0.9757 | AP8: 36.2485 | AQ8: 44.1854 | AR8: 43.7853 | AS8: 0.9757 | AT8: 36.1844 | AU8: 44.085 | AV8: 43.5542 | AW8: 0.9757 | AX8: 36.078 | AY8: 43.7552 | AZ8: 43.4113 | BA8: 0.9757 | BB8: 35.6622 | BC8: 43.336 | BD8: 43.213 | BE8: 0.9742 | BF8: 1 | BG8: 1 | BH8: 1 | BI8: 1 | BJ8: 1 | BK8: 1 | BL8: 1920 | BM8: 1088 | BN8: 25 | BO8: 250 | BP8: 8 | BQ8: 8 | BR8: 35856.79 | BS8: 93.35
A9: 2 | B9: Poznan_Street_1920x1088_25_3V_baseCfg_3view+depth_FTBE250_QP40+45+40+45+40+45 | C9: 330.8456 | D9: 241.5288 | E9: 33.7659 | F9: 42.3143 | G9: 41.6227 | H9: 0.9559 | I9: 9.8544 | J9: 34.3794 | K9: 99.99 | L9: 99.99 | M9: 0.9224 | N9: 33.5496 | O9: 33.2712 | P9: 42.4891 | Q9: 40.8754 | R9: 0.9527 | S9: 4.8 | T9: 33.7922 | U9: 99.99 | V9: 99.99 | W9: 0.9195 | X9: 31.3672 | Y9: 32.9526 | Z9: 42.298 | AA9: 41.9221 | AB9: 0.9516 | AC9: 4.9152 | AD9: 33.5497 | AE9: 99.99 | AF9: 99.99 | AG9: 0.9166 | AH9: 33.7804 | AI9: 42.4997 | AJ9: 42.0222 | AK9: 0.9555 | AL9: 34.0399 | AM9: 42.7158 | AN9: 42.4043 | AO9: 0.9571 | AP9: 34.0345 | AQ9: 42.8713 | AR9: 42.5349 | AS9: 0.9573 | AT9: 33.9583 | AU9: 42.7513 | AV9: 42.2807 | AW9: 0.9571 | AX9: 33.8559 | AY9: 42.4805 | AZ9: 42.0743 | BA9: 0.957 | BB9: 33.5416 | BC9: 42.1543 | BD9: 41.9381 | BE9: 0.9552 | BF9: 1 | BG9: 1 | BH9: 1 | BI9: 1 | BJ9: 1 | BK9: 1 | BL9: 1920 | BM9: 1088 | BN9: 25 | BO9: 250 | BP9: 8 | BQ9: 8 | BR9: 32537.07 | BS9: 100.69
A10: 3 | B10: Undo_Dancer_1920x1088_25_3V_baseCfg_3view+depth_FTBE250_QP25+34+25+34+25+34 | C10: 6748.1504 | D10: 4630.708 | E10: 38.8048 | F10: 46.6538 | G10: 45.9587 | H10: 0.9955 | I10: 206.776 | J10: 47.7898 | K10: 99.99 | L10: 99.99 | M10: 0.9976 | N10: 884.8128 | O10: 37.9807 | P10: 46.5803 | Q10: 45.9797 | R10: 0.9949 | S10: 89.0952 | T10: 46.3393 | U10: 99.99 | V10: 99.99 | W10: 0.9971 | X10: 842.052 | Y10: 38.145 | Z10: 46.5221 | AA10: 45.7857 | AB10: 0.995 | AC10: 89.876 | AD10: 46.4178 | AE10: 99.99 | AF10: 99.99 | AG10: 0.9971 | AH10: 38.532 | AI10: 46.5882 | AJ10: 45.6043 | AK10: 0.995 | AL10: 38.9353 | AM10: 46.9517 | AN10: 46.0103 | AO10: 0.9953 | AP10: 39.031 | AQ10: 47.3997 | AR10: 46.8073 | AS10: 0.9955 | AT10: 39.0324 | AU10: 47.3236 | AV10: 46.8044 | AW10: 0.9955 | AX10: 38.9546 | AY10: 46.3483 | AZ10: 46.55 | BA10: 0.9951 | BB10: 38.5891 | BC10: 45.93 | BD10: 46.2393 | BE10: 0.9948 | BF10: 1 | BG10: 1 | BH10: 1 | BI10: 1 | BJ10: 1 | BK10: 1 | BL10: 1920 | BM10: 1088 | BN10: 25 | BO10: 250 | BP10: 8 | BQ10: 8 | BR10: 55533.91 | BS10: 111.4
A11: 3 | B11: Undo_Dancer_1920x1088_25_3V_baseCfg_3view+depth_FTBE250_QP30+39+30+39+30+39 | C11: 2780.0408 | D11: 2006.9952 | E11: 35.912 | F11: 45.1497 | G11: 44.572 | H11: 0.9887 | I11: 92.732 | J11: 43.0532 | K11: 99.99 | L11: 99.99 | M11: 0.9927 | N11: 308.0456 | O11: 35.3623 | P11: 45.1205 | Q11: 44.5934 | R11: 0.9878 | S11: 36.08 | T11: 41.9827 | U11: 99.99 | V11: 99.99 | W11: 0.9918 | X11: 293.6752 | Y11: 35.5476 | Z11: 45.0493 | AA11: 44.4362 | AB11: 0.9882 | AC11: 37.6824 | AD11: 42.0775 | AE11: 99.99 | AF11: 99.99 | AG11: 0.9918 | AH11: 35.7039 | AI11: 45.2527 | AJ11: 44.4198 | AK11: 0.9879 | AL11: 35.9789 | AM11: 45.5295 | AN11: 44.7825 | AO11: 0.9886 | AP11: 36.0427 | AQ11: 45.8237 | AR11: 45.2907 | AS11: 0.9888 | AT11: 36.0478 | AU11: 45.7429 | AV11: 45.2676 | AW11: 0.9888 | AX11: 36.0302 | AY11: 44.9844 | AZ11: 45.0496 | BA11: 0.9884 | BB11: 35.8214 | BC11: 44.6516 | BD11: 44.8081 | BE11: 0.9879 | BF11: 1 | BG11: 1 | BH11: 1 | BI11: 1 | BJ11: 1 | BK11: 1 | BL11: 1920 | BM11: 1088 | BN11: 25 | BO11: 250 | BP11: 8 | BQ11: 8 | BR11: 45166.61 | BS11: 107.33
A12: 3 | B12: Undo_Dancer_1920x1088_25_3V_baseCfg_3view+depth_FTBE250_QP35+42+35+42+35+42 | C12: 1262.328 | D12: 917.1232 | E12: 33.3798 | F12: 43.7883 | G12: 43.3397 | H12: 0.9749 | I12: 44.3504 | J12: 39.2959 | K12: 99.99 | L12: 99.99 | M12: 0.9835 | N12: 132.1288 | O12: 32.9666 | P12: 43.8586 | Q12: 43.419 | R12: 0.9728 | S12: 18.3656 | T12: 38.4713 | U12: 99.99 | V12: 99.99 | W12: 0.9816 | X12: 125.8272 | Y12: 33.1601 | Z12: 43.7652 | AA12: 43.2632 | AB12: 0.9743 | AC12: 19.7024 | AD12: 38.5507 | AE12: 99.99 | AF12: 99.99 | AG12: 0.982 | AH12: 33.1788 | AI12: 43.9955 | AJ12: 43.4496 | AK12: 0.9735 | AL12: 33.3765 | AM12: 44.2097 | AN12: 43.7135 | AO12: 0.9744 | AP12: 33.421 | AQ12: 44.3874 | AR12: 43.9626 | AS12: 0.9748 | AT12: 33.4352 | AU12: 44.3167 | AV12: 43.9132 | AW12: 0.975 | AX12: 33.4357 | AY12: 43.7466 | AZ12: 43.5614 | BA12: 0.9746 | BB12: 33.309 | BC12: 43.5711 | BD12: 43.3748 | BE12: 0.9741 | BF12: 1 | BG12: 1 | BH12: 1 | BI12: 1 | BJ12: 1 | BK12: 1 | BL12: 1920 | BM12: 1088 | BN12: 25 | BO12: 250 | BP12: 8 | BQ12: 8 | BR12: 39787.62 | BS12: 104.92
A13: 3 | B13: Undo_Dancer_1920x1088_25_3V_baseCfg_3view+depth_FTBE250_QP40+45+40+45+40+45 | C13: 591.5856 | D13: 425.2296 | E13: 31.0777 | F13: 42.9918 | G13: 42.585 | H13: 0.9504 | I13: 20.3032 | J13: 35.259 | K13: 99.99 | L13: 99.99 | M13: 0.9679 | N13: 62.1272 | O13: 30.7437 | P13: 43.0403 | Q13: 42.6566 | R13: 0.9465 | S13: 9.3656 | T13: 34.7866 | U13: 99.99 | V13: 99.99 | W13: 0.9656 | X13: 59.4616 | Y13: 30.9192 | Z13: 42.9473 | AA13: 42.5056 | AB13: 0.9504 | AC13: 10.268 | AD13: 34.7929 | AE13: 99.99 | AF13: 99.99 | AG13: 0.966 | AH13: 30.8694 | AI13: 43.2772 | AJ13: 42.7702 | AK13: 0.9479 | AL13: 31.0021 | AM13: 43.4315 | AN13: 42.976 | AO13: 0.9492 | AP13: 31.0486 | AQ13: 43.5396 | AR13: 43.1533 | AS13: 0.95 | AT13: 31.0614 | AU13: 43.4715 | AV13: 43.0794 | AW13: 0.9507 | AX13: 31.048 | AY13: 42.9806 | AZ13: 42.666 | BA13: 0.9504 | BB13: 30.9731 | BC13: 42.8279 | BD13: 42.4641 | BE13: 0.9501 | BF13: 1 | BG13: 1 | BH13: 1 | BI13: 1 | BJ13: 1 | BK13: 1 | BL13: 1920 | BM13: 1088 | BN13: 25 | BO13: 250 | BP13: 8 | BQ13: 8 | BR13: 35484.2 | BS13: 105.18
A14: 4 | B14: GT_Fly_1920x1088_25_3V_baseCfg_3view+depth_FTBE250_QP25+34+25+34+25+34 | C14: 5260.048 | D14: 3712.6184 | E14: 40.2538 | F14: 45.4577 | G14: 46.2984 | H14: 0.9934 | I14: 283.2704 | J14: 43.1903 | K14: 99.99 | L14: 99.99 | M14: 0.9914 | N14: 517.9672 | O14: 39.7508 | P14: 45.3254 | Q14: 46.1771 | R14: 0.993 | S14: 99.6024 | T14: 42.3394 | U14: 99.99 | V14: 99.99 | W14: 0.9902 | X14: 538.6744 | Y14: 39.7139 | Z14: 45.2829 | AA14: 46.1381 | AB14: 0.9931 | AC14: 103.0848 | AD14: 42.2987 | AE14: 99.99 | AF14: 99.99 | AG14: 0.99 | AH14: 39.8524 | AI14: 46.5055 | AJ14: 46.5192 | AK14: 0.9927 | AL14: 40.0349 | AM14: 46.3115 | AN14: 46.774 | AO14: 0.9929 | AP14: 40.2885 | AQ14: 46.964 | AR14: 47.7968 | AS14: 0.9934 | AT14: 40.2657 | AU14: 46.9634 | AV14: 47.7878 | AW14: 0.9933 | AX14: 40.0432 | AY14: 46.2877 | AZ14: 47.0057 | BA14: 0.9929 | BB14: 39.8407 | BC14: 46.3372 | BD14: 46.5855 | BE14: 0.9927 | BF14: 1 | BG14: 1 | BH14: 1 | BI14: 1 | BJ14: 1 | BK14: 1 | BL14: 1920 | BM14: 1088 | BN14: 25 | BO14: 250 | BP14: 8 | BQ14: 8 | BR14: 64847.34 | BS14: 115.08
A15: 4 | B15: GT_Fly_1920x1088_25_3V_baseCfg_3view+depth_FTBE250_QP30+39+30+39+30+39 | C15: 2147.1864 | D15: 1616.476 | E15: 37.82 | F15: 43.6276 | G15: 44.4592 | H15: 0.9864 | I15: 95.3136 | J15: 38.8704 | K15: 99.99 | L15: 99.99 | M15: 0.9733 | N15: 181.052 | O15: 37.4781 | P15: 43.5712 | Q15: 44.413 | R15: 0.9859 | S15: 29.0888 | T15: 38.1203 | U15: 99.99 | V15: 99.99 | W15: 0.9702 | X15: 189.6872 | Y15: 37.437 | Z15: 43.5267 | AA15: 44.3728 | AB15: 0.9859 | AC15: 30.7384 | AD15: 38.0968 | AE15: 99.99 | AF15: 99.99 | AG15: 0.9701 | AH15: 37.5962 | AI15: 44.7385 | AJ15: 45.0415 | AK15: 0.9858 | AL15: 37.7438 | AM15: 44.6702 | AN15: 45.2136 | AO15: 0.9859 | AP15: 37.8743 | AQ15: 45.0511 | AR15: 45.867 | AS15: 0.9864 | AT15: 37.859 | AU15: 45.0509 | AV15: 45.8534 | AW15: 0.9863 | AX15: 37.7181 | AY15: 44.6467 | AZ15: 45.3161 | BA15: 0.9859 | BB15: 37.5495 | BC15: 44.6167 | BD15: 45.0801 | BE15: 0.9857 | BF15: 1 | BG15: 1 | BH15: 1 | BI15: 1 | BJ15: 1 | BK15: 1 | BL15: 1920 | BM15: 1088 | BN15: 25 | BO15: 250 | BP15: 8 | BQ15: 8 | BR15: 50213.96 | BS15: 101.03
A16: 4 | B16: GT_Fly_1920x1088_25_3V_baseCfg_3view+depth_FTBE250_QP35+42+35+42+35+42 | C16: 975.9408 | D16: 756.4992 | E16: 35.6216 | F16: 41.7991 | G16: 42.6216 | H16: 0.9763 | I16: 36.7992 | J16: 35.1084 | K16: 99.99 | L16: 99.99 | M16: 0.9443 | N16: 74.436 | O16: 35.3884 | P16: 41.8033 | Q16: 42.6353 | R16: 0.9756 | S16: 12.3752 | T16: 34.4314 | U16: 99.99 | V16: 99.99 | W16: 0.9405 | X16: 78.1216 | Y16: 35.3439 | Z16: 41.7606 | AA16: 42.5956 | AB16: 0.9756 | AC16: 12.8792 | AD16: 34.5325 | AE16: 99.99 | AF16: 99.99 | AG16: 0.9403 | AH16: 35.5114 | AI16: 42.7823 | AJ16: 43.4126 | AK16: 0.9757 | AL16: 35.6106 | AM16: 42.8103 | AN16: 43.4501 | AO16: 0.9758 | AP16: 35.6753 | AQ16: 43.039 | AR16: 43.8291 | AS16: 0.9763 | AT16: 35.6673 | AU16: 43.0318 | AV16: 43.8135 | AW16: 0.9762 | AX16: 35.5842 | AY16: 42.7696 | AZ16: 43.4589 | BA16: 0.9757 | BB16: 35.457 | BC16: 42.6802 | BD16: 43.254 | BE16: 0.9756 | BF16: 1 | BG16: 1 | BH16: 1 | BI16: 1 | BJ16: 1 | BK16: 1 | BL16: 1920 | BM16: 1088 | BN16: 25 | BO16: 250 | BP16: 8 | BQ16: 8 | BR16: 42549.54 | BS16: 100.49
A17: 4 | B17: GT_Fly_1920x1088_25_3V_baseCfg_3view+depth_FTBE250_QP40+45+40+45+40+45 | C17: 469.7288 | D17: 365.296 | E17: 33.4624 | F17: 40.5611 | G17: 41.3894 | H17: 0.9596 | I17: 15.7568 | J17: 31.621 | K17: 99.99 | L17: 99.99 | M17: 0.9023 | N17: 34.7136 | O17: 33.3015 | P17: 40.564 | Q17: 41.4005 | R17: 0.9586 | S17: 6.1664 | T17: 30.9691 | U17: 99.99 | V17: 99.99 | W17: 0.897 | X17: 36.6232 | Y17: 33.2478 | Z17: 40.5178 | AA17: 41.359 | AB17: 0.9585 | AC17: 6.3424 | AD17: 31.1219 | AE17: 99.99 | AF17: 99.99 | AG17: 0.8972 | AH17: 33.4118 | AI17: 41.3915 | AJ17: 42.0883 | AK17: 0.9589 | AL17: 33.4765 | AM17: 41.4829 | AN17: 42.1537 | AO17: 0.9589 | AP17: 33.5089 | AQ17: 41.658 | AR17: 42.4402 | AS17: 0.9595 | AT17: 33.5043 | AU17: 41.6502 | AV17: 42.4194 | AW17: 0.9594 | AX17: 33.4523 | AY17: 41.4513 | AZ17: 42.1314 | BA17: 0.9589 | BB17: 33.3581 | BC17: 41.343 | BD17: 41.9904 | BE17: 0.9587 | BF17: 1 | BG17: 1 | BH17: 1 | BI17: 1 | BJ17: 1 | BK17: 1 | BL17: 1920 | BM17: 1088 | BN17: 25 | BO17: 250 | BP17: 8 | BQ17: 8 | BR17: 37003.88 | BS17: 103.83
A18: 5 | B18: Kendo_1024x768_30_3V_baseCfg_3view+depth_FTBE300_QP25+34+25+34+25+34 | C18: 1779.044 | D18: 846.7608 | E18: 43.6049 | F18: 44.9558 | G18: 44.9344 | H18: 0.9915 | I18: 133.5328 | J18: 39.1932 | K18: 99.99 | L18: 99.99 | M18: 0.9735 | N18: 273.2256 | O18: 42.6916 | P18: 44.7501 | Q18: 44.1493 | R18: 0.9905 | S18: 105.5576 | T18: 36.1391 | U18: 99.99 | V18: 99.99 | W18: 0.9574 | X18: 290.9704 | Y18: 42.3286 | Z18: 43.9607 | AA18: 43.89 | AB18: 0.9902 | AC18: 123.2064 | AD18: 35.3032 | AE18: 99.99 | AF18: 99.99 | AG18: 0.9536 | AH18: 42.7749 | AI18: 46.9889 | AJ18: 45.7783 | AK18: 0.9913 | AL18: 43.481 | AM18: 47.5971 | AN18: 46.607 | AO18: 0.993 | AP18: 43.652 | AQ18: 47.0536 | AR18: 46.5377 | AS18: 0.9929 | AT18: 43.4897 | AU18: 47.04 | AV18: 46.5948 | AW18: 0.9928 | AX18: 43.221 | AY18: 47.3066 | AZ18: 46.598 | BA18: 0.9931 | BB18: 42.4667 | BC18: 46.3613 | BD18: 45.7468 | BE18: 0.9918 | BF18: 1 | BG18: 1 | BH18: 1 | BI18: 1 | BJ18: 1 | BK18: 1 | BL18: 1024 | BM18: 768 | BN18: 30 | BO18: 300 | BP18: 8 | BQ18: 8 | BR18: 35635.2 | BS18: 53.55
A19: 5 | B19: Kendo_1024x768_30_3V_baseCfg_3view+depth_FTBE300_QP30+39+30+39+30+39 | C19: 829.8384 | D19: 450.8312 | E19: 41.4317 | F19: 44.1114 | G19: 43.4435 | H19: 0.987 | I19: 46.7088 | J19: 35.2036 | K19: 99.99 | L19: 99.99 | M19: 0.9543 | N19: 122.6528 | O19: 40.3663 | P19: 43.8105 | Q19: 42.6527 | R19: 0.9853 | S19: 34.8376 | T19: 32.2045 | U19: 99.99 | V19: 99.99 | W19: 0.9275 | X19: 128.8408 | Y19: 40.1136 | Z19: 42.975 | AA19: 42.4471 | AB19: 0.9849 | AC19: 40.1768 | AD19: 31.4919 | AE19: 99.99 | AF19: 99.99 | AG19: 0.92 | AH19: 40.5318 | AI19: 45.8063 | AJ19: 44.027 | AK19: 0.9864 | AL19: 41.0858 | AM19: 46.3128 | AN19: 44.7569 | AO19: 0.9885 | AP19: 41.3595 | AQ19: 46.0013 | AR19: 44.8018 | AS19: 0.9885 | AT19: 41.2011 | AU19: 46.0246 | AV19: 44.8509 | AW19: 0.9883 | AX19: 40.865 | AY19: 46.1262 | AZ19: 44.7559 | BA19: 0.9885 | BB19: 40.27 | BC19: 45.22 | BD19: 44.0122 | BE19: 0.9869 | BF19: 1 | BG19: 1 | BH19: 1 | BI19: 1 | BJ19: 1 | BK19: 1 | BL19: 1024 | BM19: 768 | BN19: 30 | BO19: 300 | BP19: 8 | BQ19: 8 | BR19: 29860.68 | BS19: 58.27
A20: 5 | B20: Kendo_1024x768_30_3V_baseCfg_3view+depth_FTBE300_QP35+42+35+42+35+42 | C20: 445.4752 | D20: 256.2232 | E20: 38.945 | F20: 43.0659 | G20: 41.7778 | H20: 0.9797 | I20: 20.1472 | J20: 32.2258 | K20: 99.99 | L20: 99.99 | M20: 0.9354 | N20: 64.0464 | O20: 37.9254 | P20: 42.8892 | Q20: 41.3062 | R20: 0.9772 | S20: 15.1392 | T20: 29.5293 | U20: 99.99 | V20: 99.99 | W20: 0.8987 | X20: 67.0528 | Y20: 37.7413 | Z20: 42.1998 | AA20: 41.2048 | AB20: 0.9767 | AC20: 17.076 | AD20: 28.8166 | AE20: 99.99 | AF20: 99.99 | AG20: 0.8871 | AH20: 38.1744 | AI20: 44.6367 | AJ20: 42.4834 | AK20: 0.9788 | AL20: 38.5999 | AM20: 44.9746 | AN20: 42.9848 | AO20: 0.9812 | AP20: 38.8564 | AQ20: 44.7232 | AR20: 42.9656 | AS20: 0.9814 | AT20: 38.7112 | AU20: 44.7676 | AV20: 42.9817 | AW20: 0.9811 | AX20: 38.3868 | AY20: 44.927 | AZ20: 42.9783 | BA20: 0.9811 | BB20: 37.951 | BC20: 44.2267 | BD20: 42.4767 | BE20: 0.9791 | BF20: 1 | BG20: 1 | BH20: 1 | BI20: 1 | BJ20: 1 | BK20: 1 | BL20: 1024 | BM20: 768 | BN20: 30 | BO20: 300 | BP20: 8 | BQ20: 8 | BR20: 26339.85 | BS20: 70.76
A21: 5 | B21: Kendo_1024x768_30_3V_baseCfg_3view+depth_FTBE300_QP40+45+40+45+40+45 | C21: 255.2784 | D21: 153.9592 | E21: 36.3288 | F21: 42.2614 | G21: 40.4402 | H21: 0.9678 | I21: 9.7872 | J21: 29.7892 | K21: 99.99 | L21: 99.99 | M21: 0.9153 | N21: 34.5616 | O21: 35.386 | P21: 42.0077 | Q21: 39.9896 | R21: 0.9643 | S21: 7.2472 | T21: 26.9054 | U21: 99.99 | V21: 99.99 | W21: 0.8662 | X21: 35.8776 | Y21: 35.2396 | Z21: 41.405 | AA21: 39.9505 | AB21: 0.9638 | AC21: 8.0552 | AD21: 26.0842 | AE21: 99.99 | AF21: 99.99 | AG21: 0.8465 | AH21: 35.7029 | AI21: 43.6683 | AJ21: 41.039 | AK21: 0.9666 | AL21: 36.0169 | AM21: 43.9297 | AN21: 41.4421 | AO21: 0.9694 | AP21: 36.2427 | AQ21: 43.7719 | AR21: 41.4503 | AS21: 0.9698 | AT21: 36.0959 | AU21: 43.7946 | AV21: 41.435 | AW21: 0.9694 | AX21: 35.8033 | AY21: 43.9219 | AZ21: 41.4065 | BA21: 0.9692 | BB21: 35.4628 | BC21: 43.3448 | BD21: 41.0131 | BE21: 0.9667 | BF21: 1 | BG21: 1 | BH21: 1 | BI21: 1 | BJ21: 1 | BK21: 1 | BL21: 1024 | BM21: 768 | BN21: 30 | BO21: 300 | BP21: 8 | BQ21: 8 | BR21: 24799.08 | BS21: 66.67
A22: 6 | B22: Balloons_1024x768_30_3V_baseCfg_3view+depth_FTBE300_QP25+34+25+34+25+34 | C22: 1748.0968 | D22: 878.1544 | E22: 43.0952 | F22: 43.402 | G22: 43.9712 | H22: 0.9917 | I22: 114.7912 | J22: 39.577 | K22: 99.99 | L22: 99.99 | M22: 0.9805 | N22: 270.0672 | O22: 42.2323 | P22: 43.1061 | Q22: 43.1311 | R22: 0.9913 | S22: 84.8912 | T22: 37.4367 | U22: 99.99 | V22: 99.99 | W22: 0.9717 | X22: 299.5616 | Y22: 41.9068 | Z22: 42.5485 | AA22: 42.8726 | AB22: 0.9906 | AC22: 94.8408 | AD22: 36.7743 | AE22: 99.99 | AF22: 99.99 | AG22: 0.9644 | AH22: 42.3272 | AI22: 45.3656 | AJ22: 45.0777 | AK22: 0.9928 | AL22: 42.9352 | AM22: 45.9669 | AN22: 45.7694 | AO22: 0.9938 | AP22: 43.0615 | AQ22: 45.5838 | AR22: 45.7018 | AS22: 0.9933 | AT22: 42.9536 | AU22: 45.5916 | AV22: 45.6738 | AW22: 0.9931 | AX22: 42.7555 | AY22: 45.8889 | AZ22: 45.6569 | BA22: 0.9936 | BB22: 42.0949 | BC22: 45.1402 | BD22: 44.8852 | BE22: 0.9924 | BF22: 1 | BG22: 1 | BH22: 1 | BI22: 1 | BJ22: 1 | BK22: 1 | BL22: 1024 | BM22: 768 | BN22: 30 | BO22: 300 | BP22: 8 | BQ22: 8 | BR22: 31457.56 | BS22: 60.09
A23: 6 | B23: Balloons_1024x768_30_3V_baseCfg_3view+depth_FTBE300_QP30+39+30+39+30+39 | C23: 842.8192 | D23: 481.5664 | E23: 41.046 | F23: 42.1403 | G23: 42.3323 | H23: 0.9875 | I23: 38.4328 | J23: 36.4792 | K23: 99.99 | L23: 99.99 | M23: 0.9654 | N23: 123.0496 | O23: 39.9227 | P23: 41.8274 | Q23: 41.524 | R23: 0.9863 | S23: 27.908 | T23: 34.4631 | U23: 99.99 | V23: 99.99 | W23: 0.951 | X23: 135.3808 | Y23: 39.6749 | Z23: 41.2256 | AA23: 41.3061 | AB23: 0.9854 | AC23: 30.6912 | AD23: 33.6076 | AE23: 99.99 | AF23: 99.99 | AG23: 0.936 | AH23: 40.1247 | AI23: 43.7349 | AJ23: 43.0956 | AK23: 0.9882 | AL23: 40.6378 | AM23: 44.2187 | AN23: 43.6744 | AO23: 0.9895 | AP23: 40.9031 | AQ23: 43.9675 | AR23: 43.7113 | AS23: 0.9891 | AT23: 40.8025 | AU23: 43.9636 | AV23: 43.6852 | AW23: 0.9889 | AX23: 40.5046 | AY23: 44.1262 | AZ23: 43.5505 | BA23: 0.9891 | BB23: 39.9615 | BC23: 43.4581 | BD23: 42.9087 | BE23: 0.9876 | BF23: 1 | BG23: 1 | BH23: 1 | BI23: 1 | BJ23: 1 | BK23: 1 | BL23: 1024 | BM23: 768 | BN23: 30 | BO23: 300 | BP23: 8 | BQ23: 8 | BR23: 25857.58 | BS23: 80.76
A24: 6 | B24: Balloons_1024x768_30_3V_baseCfg_3view+depth_FTBE300_QP35+42+35+42+35+42 | C24: 460.2736 | D24: 277.1824 | E24: 38.4566 | F24: 40.6462 | G24: 40.5216 | H24: 0.9788 | I24: 16.5808 | J24: 34.048 | K24: 99.99 | L24: 99.99 | M24: 0.9488 | N24: 64.4824 | O24: 37.3268 | P24: 40.5547 | Q24: 40.0519 | R24: 0.9763 | S24: 11.9024 | T24: 31.9623 | U24: 99.99 | V24: 99.99 | W24: 0.9284 | X24: 71.1232 | Y24: 37.1264 | Z24: 40.0805 | AA24: 39.8692 | AB24: 0.9752 | AC24: 13.212 | AD24: 31.0663 | AE24: 99.99 | AF24: 99.99 | AG24: 0.9082 | AH24: 37.634 | AI24: 42.0515 | AJ24: 41.2785 | AK24: 0.9789 | AL24: 38.0601 | AM24: 42.3521 | AN24: 41.6374 | AO24: 0.9807 | AP24: 38.3522 | AQ24: 42.1207 | AR24: 41.6327 | AS24: 0.9805 | AT24: 38.2441 | AU24: 42.1399 | AV24: 41.6187 | AW24: 0.9801 | AX24: 37.9505 | AY24: 42.3159 | AZ24: 41.5444 | BA24: 0.98 | BB24: 37.4976 | BC24: 41.8754 | BD24: 41.1272 | BE24: 0.978 | BF24: 1 | BG24: 1 | BH24: 1 | BI24: 1 | BJ24: 1 | BK24: 1 | BL24: 1024 | BM24: 768 | BN24: 30 | BO24: 300 | BP24: 8 | BQ24: 8 | BR24: 23371.19 | BS24: 68.19
A25: 6 | B25: Balloons_1024x768_30_3V_baseCfg_3view+depth_FTBE300_QP40+45+40+45+40+45 | C25: 265.192 | D25: 167.7 | E25: 35.6339 | F25: 39.5593 | G25: 39.2095 | H25: 0.961 | I25: 8.348 | J25: 31.4596 | K25: 99.99 | L25: 99.99 | M25: 0.9256 | N25: 33.7688 | O25: 34.5834 | P25: 39.4498 | Q25: 38.7974 | R25: 0.9568 | S25: 5.8008 | T25: 29.255 | U25: 99.99 | V25: 99.99 | W25: 0.9025 | X25: 37.5728 | Y25: 34.4071 | Z25: 39.0062 | AA25: 38.5919 | AB25: 0.9552 | AC25: 6.2112 | AD25: 27.8466 | AE25: 99.99 | AF25: 99.99 | AG25: 0.8774 | AH25: 34.9364 | AI25: 40.7024 | AJ25: 39.8276 | AK25: 0.9603 | AL25: 35.2755 | AM25: 40.9338 | AN25: 40.0939 | AO25: 0.9627 | AP25: 35.5489 | AQ25: 40.8027 | AR25: 40.1056 | AS25: 0.9628 | AT25: 35.4434 | AU25: 40.8025 | AV25: 40.0762 | AW25: 0.9622 | AX25: 35.1641 | AY25: 40.9074 | AZ25: 39.9618 | BA25: 0.9616 | BB25: 34.7952 | BC25: 40.5635 | BD25: 39.6284 | BE25: 0.9589 | BF25: 1 | BG25: 1 | BH25: 1 | BI25: 1 | BJ25: 1 | BK25: 1 | BL25: 1024 | BM25: 768 | BN25: 30 | BO25: 300 | BP25: 8 | BQ25: 8 | BR25: 22787.11 | BS25: 65.79
A26: 8 | B26: Newspaper_CC_1024x768_30_3V_baseCfg_3view+depth_FTBE300_QP25+34+25+34+25+34 | C26: 2028.0928 | D26: 949.8848 | E26: 41.3556 | F26: 44.1509 | G26: 44.2123 | H26: 0.9933 | I26: 188.5224 | J26: 38.2819 | K26: 99.99 | L26: 99.99 | M26: 0.9726 | N26: 304.1224 | O26: 40.3058 | P26: 42.9539 | Q26: 43.068 | R26: 0.9915 | S26: 122.4528 | T26: 37.1932 | U26: 99.99 | V26: 99.99 | W26: 0.9669 | X26: 347.5544 | Y26: 39.9021 | Z26: 42.8496 | AA26: 42.759 | AB26: 0.9912 | AC26: 109.7656 | AD26: 37.0955 | AE26: 99.99 | AF26: 99.99 | AG26: 0.9698 | AH26: 39.92 | AI26: 45.2631 | AJ26: 45.4457 | AK26: 0.992 | AL26: 40.4696 | AM26: 46.1262 | AN26: 46.173 | AO26: 0.9934 | AP26: 40.9536 | AQ26: 46.0258 | AR26: 46.094 | AS26: 0.9936 | AT26: 40.927 | AU26: 45.8634 | AV26: 45.9432 | AW26: 0.9939 | AX26: 40.3114 | AY26: 45.8999 | AZ26: 45.8691 | BA26: 0.9939 | BB26: 39.9383 | BC26: 45.0815 | BD26: 45.0412 | BE26: 0.9929 | BF26: 1 | BG26: 1 | BH26: 1 | BI26: 1 | BJ26: 1 | BK26: 1 | BL26: 1024 | BM26: 768 | BN26: 30 | BO26: 300 | BP26: 8 | BQ26: 8 | BR26: 30191.72 | BS26: 69.25
A27: 8 | B27: Newspaper_CC_1024x768_30_3V_baseCfg_3view+depth_FTBE300_QP30+39+30+39+30+39 | C27: 927.2024 | D27: 499.7776 | E27: 38.9893 | F27: 42.521 | G27: 42.5372 | H27: 0.9875 | I27: 63.2096 | J27: 35.0177 | K27: 99.99 | L27: 99.99 | M27: 0.9403 | N27: 129.3376 | O27: 37.9645 | P27: 41.2932 | Q27: 41.4328 | R27: 0.9849 | S27: 43.2664 | T27: 34.1368 | U27: 99.99 | V27: 99.99 | W27: 0.9402 | X27: 149.8272 | Y27: 37.5201 | Z27: 41.3721 | AA27: 41.1017 | AB27: 0.9847 | AC27: 35.9936 | AD27: 34.1017 | AE27: 99.99 | AF27: 99.99 | AG27: 0.9436 | AH27: 37.7775 | AI27: 43.45 | AJ27: 43.6229 | AK27: 0.9858 | AL27: 38.1985 | AM27: 44.2211 | AN27: 44.2345 | AO27: 0.9875 | AP27: 38.6581 | AQ27: 44.2571 | AR27: 44.2335 | AS27: 0.9879 | AT27: 38.5839 | AU27: 44.0684 | AV27: 44.0383 | AW27: 0.9883 | AX27: 37.9761 | AY27: 44.058 | AZ27: 43.8562 | BA27: 0.9882 | BB27: 37.6101 | BC27: 43.3709 | BD27: 43.12 | BE27: 0.987 | BF27: 1 | BG27: 1 | BH27: 1 | BI27: 1 | BJ27: 1 | BK27: 1 | BL27: 1024 | BM27: 768 | BN27: 30 | BO27: 300 | BP27: 8 | BQ27: 8 | BR27: 24795.02 | BS27: 67.5
A28: 8 | B28: Newspaper_CC_1024x768_30_3V_baseCfg_3view+depth_FTBE300_QP35+42+35+42+35+42 | C28: 480.06 | D28: 275.0168 | E28: 36.4475 | F28: 40.7526 | G28: 40.7023 | H28: 0.9766 | I28: 25.8472 | J28: 32.4102 | K28: 99.99 | L28: 99.99 | M28: 0.9001 | N28: 64.144 | O28: 35.5317 | P28: 40.0316 | Q28: 40.0645 | R28: 0.9728 | S28: 18.6456 | T28: 31.5214 | U28: 99.99 | V28: 99.99 | W28: 0.9071 | X28: 75.2032 | Y28: 35.0724 | Z28: 40.0808 | AA28: 39.6701 | AB28: 0.9727 | AC28: 15.4128 | AD28: 31.563 | AE28: 99.99 | AF28: 99.99 | AG28: 0.9155 | AH28: 35.5043 | AI28: 41.8804 | AJ28: 41.9043 | AK28: 0.9745 | AL28: 35.8007 | AM28: 42.393 | AN28: 42.2707 | AO28: 0.9766 | AP28: 36.198 | AQ28: 42.3196 | AR28: 42.1938 | AS28: 0.9771 | AT28: 36.138 | AU28: 42.1479 | AV28: 41.9741 | AW28: 0.9777 | AX28: 35.5716 | AY28: 42.2211 | AZ28: 41.861 | BA28: 0.9773 | BB28: 35.1981 | BC28: 41.7782 | BD28: 41.3457 | BE28: 0.9758 | BF28: 1 | BG28: 1 | BH28: 1 | BI28: 1 | BJ28: 1 | BK28: 1 | BL28: 1024 | BM28: 768 | BN28: 30 | BO28: 300 | BP28: 8 | BQ28: 8 | BR28: 21873.1 | BS28: 62.84
A29: 8 | B29: Newspaper_CC_1024x768_30_3V_baseCfg_3view+depth_FTBE300_QP40+45+40+45+40+45 | C29: 267.1848 | D29: 159.2824 | E29: 33.8712 | F29: 39.5081 | G29: 39.4038 | H29: 0.958 | I29: 11.5968 | J29: 29.5144 | K29: 99.99 | L29: 99.99 | M29: 0.8505 | N29: 34.5152 | O29: 33.1174 | P29: 38.9611 | Q29: 38.9568 | R29: 0.9523 | S29: 8.4904 | T29: 28.2439 | U29: 99.99 | V29: 99.99 | W29: 0.8596 | X29: 39.8808 | Y29: 32.5546 | Z29: 39.0737 | AA29: 38.5773 | AB29: 0.9519 | AC29: 7.6288 | AD29: 28.887 | AE29: 99.99 | AF29: 99.99 | AG29: 0.8796 | AH29: 33.1331 | AI29: 40.5346 | AJ29: 40.5408 | AK29: 0.9548 | AL29: 33.3338 | AM29: 40.9091 | AN29: 40.7735 | AO29: 0.9574 | AP29: 33.6743 | AQ29: 40.856 | AR29: 40.6999 | AS29: 0.9586 | AT29: 33.5933 | AU29: 40.7093 | AV29: 40.4879 | AW29: 0.9592 | AX29: 33.0647 | AY29: 40.7804 | AZ29: 40.3657 | BA29: 0.9581 | BB29: 32.6929 | BC29: 40.4879 | BD29: 39.9654 | BE29: 0.9558 | BF29: 1 | BG29: 1 | BH29: 1 | BI29: 1 | BJ29: 1 | BK29: 1 | BL29: 1024 | BM29: 768 | BN29: 30 | BO29: 300 | BP29: 8 | BQ29: 8 | BR29: 21858.71 | BS29: 63.32
A30: 10 | B30: Shark_1920x1088_30_3V_baseCfg_3view+depth_FTBE300_QP25+34+25+34+25+34 | C30: 6045.432 | D30: 4180.3232 | E30: 41.4859 | F30: 46.5983 | G30: 46.047 | H30: 0.9953 | I30: 453.188 | J30: 38.7264 | K30: 99.99 | L30: 99.99 | M30: 0.9779 | N30: 511.2288 | O30: 40.9314 | P30: 46.5088 | Q30: 45.7948 | R30: 0.9947 | S30: 190.0432 | T30: 37.7672 | U30: 99.99 | V30: 99.99 | W30: 0.9741 | X30: 516.6088 | Y30: 40.9396 | Z30: 46.5014 | AA30: 45.8036 | AB30: 0.9947 | AC30: 188.2496 | AD30: 37.5432 | AE30: 99.99 | AF30: 99.99 | AG30: 0.9741 | AH30: 40.6754 | AI30: 46.6533 | AJ30: 46.3534 | AK30: 0.9947 | AL30: 40.8613 | AM30: 47.1783 | AN30: 46.49 | AO30: 0.9949 | AP30: 41.078 | AQ30: 47.627 | AR30: 47.2177 | AS30: 0.9952 | AT30: 41.067 | AU30: 47.6865 | AV30: 47.2354 | AW30: 0.9952 | AX30: 40.8833 | AY30: 46.7708 | AZ30: 46.6728 | BA30: 0.995 | BB30: 40.7098 | BC30: 46.5451 | BD30: 46.5882 | BE30: 0.9947 | BF30: 1 | BG30: 1 | BH30: 1 | BI30: 1 | BJ30: 1 | BK30: 1 | BL30: 1920 | BM30: 1088 | BN30: 30 | BO30: 300 | BP30: 8 | BQ30: 8 | BR30: 66134.93 | BS30: 127.63
A31: 10 | B31: Shark_1920x1088_30_3V_baseCfg_3view+depth_FTBE300_QP30+39+30+39+30+39 | C31: 2797.2008 | D31: 2104.3736 | E31: 38.4925 | F31: 44.9009 | G31: 44.1094 | H31: 0.9892 | I31: 148.764 | J31: 35.6376 | K31: 99.99 | L31: 99.99 | M31: 0.9456 | N31: 213.1176 | O31: 38.0912 | P31: 44.8511 | Q31: 43.9479 | R31: 0.9883 | S31: 55.2712 | T31: 34.982 | U31: 99.99 | V31: 99.99 | W31: 0.9406 | X31: 214.908 | Y31: 38.1009 | Z31: 44.8323 | AA31: 43.9555 | AB31: 0.9883 | AC31: 54.976 | AD31: 34.7303 | AE31: 99.99 | AF31: 99.99 | AG31: 0.9418 | AH31: 37.9126 | AI31: 45.0552 | AJ31: 44.5083 | AK31: 0.9882 | AL31: 38.0472 | AM31: 45.4454 | AN31: 44.5882 | AO31: 0.9886 | AP31: 38.1772 | AQ31: 45.8041 | AR31: 45.1317 | AS31: 0.9889 | AT31: 38.1758 | AU31: 45.8741 | AV31: 45.1592 | AW31: 0.9889 | AX31: 38.0563 | AY31: 45.2376 | AZ31: 44.7298 | BA31: 0.9887 | BB31: 37.9287 | BC31: 45.0576 | BD31: 44.6592 | BE31: 0.9883 | BF31: 1 | BG31: 1 | BH31: 1 | BI31: 1 | BJ31: 1 | BK31: 1 | BL31: 1920 | BM31: 1088 | BN31: 30 | BO31: 300 | BP31: 8 | BQ31: 8 | BR31: 53876.51 | BS31: 124.59
A32: 10 | B32: Shark_1920x1088_30_3V_baseCfg_3view+depth_FTBE300_QP35+42+35+42+35+42 | C32: 1344.0976 | D32: 1035.5176 | E32: 35.6682 | F32: 43.2599 | G32: 42.223 | H32: 0.9759 | I32: 54.8 | J32: 33.0932 | K32: 99.99 | L32: 99.99 | M32: 0.8949 | N32: 101.0032 | O32: 35.3951 | P32: 43.2633 | Q32: 42.1718 | R32: 0.9748 | S32: 22.0832 | T32: 32.6483 | U32: 99.99 | V32: 99.99 | W32: 0.8891 | X32: 102.9 | Y32: 35.4103 | Z32: 43.2471 | AA32: 42.1775 | AB32: 0.9749 | AC32: 22.0032 | AD32: 32.4454 | AE32: 99.99 | AF32: 99.99 | AG32: 0.8907 | AH32: 35.259 | AI32: 43.4424 | AJ32: 42.5765 | AK32: 0.9747 | AL32: 35.3413 | AM32: 43.6966 | AN32: 42.6495 | AO32: 0.9751 | AP32: 35.429 | AQ32: 43.973 | AR32: 43.0456 | AS32: 0.9755 | AT32: 35.4319 | AU32: 44.0483 | AV32: 43.0827 | AW32: 0.9755 | AX32: 35.349 | AY32: 43.6068 | AZ32: 42.7495 | BA32: 0.9753 | BB32: 35.2683 | BC32: 43.4908 | BD32: 42.6741 | BE32: 0.9748 | BF32: 1 | BG32: 1 | BH32: 1 | BI32: 1 | BJ32: 1 | BK32: 1 | BL32: 1920 | BM32: 1088 | BN32: 30 | BO32: 300 | BP32: 8 | BQ32: 8 | BR32: 46946.83 | BS32: 123.77
A33: 10 | B33: Shark_1920x1088_30_3V_baseCfg_3view+depth_FTBE300_QP40+45+40+45+40+45 | C33: 645.8536 | D33: 496.5992 | E33: 33.1978 | F33: 42.2784 | G33: 40.9678 | H33: 0.9511 | I33: 22.1768 | J33: 30.677 | K33: 99.99 | L33: 99.99 | M33: 0.8363 | N33: 49.5792 | O33: 32.9881 | P33: 42.2762 | Q33: 40.8747 | R33: 0.9495 | S33: 10.4208 | T33: 30.3562 | U33: 99.99 | V33: 99.99 | W33: 0.8317 | X33: 51.0272 | Y33: 32.9944 | Z33: 42.2408 | AA33: 40.8814 | AB33: 0.9495 | AC33: 10.26 | AD33: 30.158 | AE33: 99.99 | AF33: 99.99 | AG33: 0.8319 | AH33: 32.871 | AI33: 42.3693 | AJ33: 41.2239 | AK33: 0.9492 | AL33: 32.9155 | AM33: 42.4895 | AN33: 41.2916 | AO33: 0.9497 | AP33: 32.9847 | AQ33: 42.7476 | AR33: 41.598 | AS33: 0.9502 | AT33: 32.9813 | AU33: 42.859 | AV33: 41.6217 | AW33: 0.9503 | AX33: 32.9129 | AY33: 42.5027 | AZ33: 41.3339 | BA33: 0.9498 | BB33: 32.8661 | BC33: 42.4398 | BD33: 41.3006 | BE33: 0.9492 | BF33: 1 | BG33: 1 | BH33: 1 | BI33: 1 | BJ33: 1 | BK33: 1 | BL33: 1920 | BM33: 1088 | BN33: 30 | BO33: 300 | BP33: 8 | BQ33: 8 | BR33: 40938.72 | BS33: 118.51
